Workbook

Sheet הוצאות ניהול השקעות (hidden)
A1: מס' קופה | B1: שם מסלול משולב | C1: קוד מסלול באוצר | D1: שם מסלול | E1: שיעור הוצאות ישירות מסוג עמלת ניהול חיצוני (מגבלה לשנת 2023) | F1: שיעור הוצאות ישירות שאינן מסוכ עמלת ניהול חיצוני (נגבה בפועל בשנת 2022) | G1: שיעור הוצאות לניהול השקעות 2022 (לחישוב עלות כוללת צפויה עדכני ל-29.05.2023)
A2: 162 | B2: מקפת אישית -כללי | C2: 2102 | D2: כללי | E2: 0.0025 | F2: 0.0002 | G2: 0.0027
A3: 162 | B3: מקפת אישית -לבני 50 ומטה | C3: 8801 | D3: לבני 50 ומטה | E3: 0.0022 | F3: 0.0002 | G3: 0.0024
A4: 162 | B4: מקפת אישית -לבני 50 עד 60 | C4: 8802 | D4: לבני 50 עד 60 | E4: 0.0022 | F4: 0.0002 | G4: 0.0024
A5: 162 | B5: מקפת אישית -לבני 60 ומעלה | C5: 8803 | D5: לבני 60 ומעלה | E5: 0.0022 | F5: 0.0002 | G5: 0.0024
A6: 162 | B6: מקפת אישית -לזכאים קיימים לקצבה | C6: 8602 | D6: לזכאים קיימים לקצבה | E6: 0.001 | F6: 0 | G6: 0.001
A7: 162 | B7: מקפת אישית -פנסיונרים חדשים | C7: 2207 | D7: פנסיונרים חדשים | E7: 0.001 | F7: 0.0001 | G7: 0.0011
A8: 162 | B8: מקפת אישית -למקבלי קצבה החל מ-2018 | C8: 12145 | D8: למקבלי קצבה החל מ-2018 | E8: 0.0013 | F8: 0.0001 | G8: 0.0014
A9: 162 | B9: מקפת אישית -הלכה | C9: 2112 | D9: הלכה | E9: 0.0008 | F9: 0.0002 | G9: 0.001
A10: 162 | B10: מקפת אישית -מניות | C10: 2142 | D10: מניות | E10: 0.0008 | F10: 0.0002 | G10: 0.001
A11: 162 | B11: מקפת אישית -שקלי טווח קצר | C11: 2143 | D11: שקלי טווח קצר | E11: 0.0002 | F11: 0.0001 | G11: 0.0003
A12: 162 | B12: מקפת אישית -אג"ח | C12: 2144 | D12: אג"ח | E12: 0.0008 | F12: 0.0001 | G12: 0.0009
A13: 162 | B13: מקפת אישית -פנסיונרים הלכה | C13: 12146 | D13: פנסיונרים הלכה | E13: 0.0008 | F13: 0.0002 | G13: 0.001
A14: 162 | B14: מקפת אישית -מניות למקבלי קצבה | C14: 12147 | D14: מניות למקבלי קצבה | E14: 0.00056 | F14: 0.0001 | G14: 0.00066
A15: 162 | B15: מקפת אישית -אג"ח למקבלי קצבה | C15: 12148 | D15: אג"ח למקבלי קצבה | E15: 0.0005 | F15: 0.0001 | G15: 0.0006
A16: 162 | B16: מקפת אישית -הלכה למקבלי קצבה קיימים | C16: 8603 | D16: הלכה למקבלי קצבה קיימים | E16: 0.0008 | F16: 0.0013 | G16: 0.0021
A17: 162 | B17: מקפת אישית -מחקה מדד s&p500 | C17: 13572 | D17: מחקה מדד s&p500 | E17: 0.0006 | F17: 0.0003 | G17: 0.0009
A18: 162 | B18: מקפת אישית -משולב סחיר | C18: 14242 | D18: משולב סחיר | E18: 0.0008 | F18: 0.0001 | G18: 0.0009
A19: 162 | B19: מקפת אישית -עוקב מדדים גמיש | C19: 14243 | D19: עוקב מדדים גמיש | E19: 0.001 | F19: 0.0009 | G19: 0.0019
A20: 162 | B20: מקפת אישית -פאסיבי - מדדי מניות | C20: 14929 | D20: פאסיבי - מדדי מניות | E20: 0.0008 | F20: 0.0003 | G20: 0.0011
A24: 659 | B24: מקפת משלימה-לבני 50 ומטה | C24: 9453 | D24: לבני 50 ומטה | E24: 0.0025 | F24: 0.0002 | G24: 0.0027
A25: 659 | B25: מקפת משלימה-לבני 50 עד 60 | C25: 9454 | D25: לבני 50 עד 60 | E25: 0.0025 | F25: 0.0002 | G25: 0.0027
A26: 659 | B26: מקפת משלימה-לבני 60 ומעלה | C26: 9455 | D26: לבני 60 ומעלה | E26: 0.0025 | F26: 0.0002 | G26: 0.0027
A27: 659 | B27: מקפת משלימה-פנסיונרים חדשים | C27: 2208 | D27: פנסיונרים חדשים | E27: 0.001 | F27: 0.0002 | G27: 0.0012
A28: 659 | B28: מקפת משלימה-למקבלי קצבה החל מ-2018 | C28: 12152 | D28: למקבלי קצבה החל מ-2018 | E28: 0.0025 | F28: 0.0002 | G28: 0.0027
A29: 659 | B29: מקפת משלימה-הלכה | C29: 2149 | D29: הלכה | E29: 0.001 | F29: 0.0003 | G29: 0.0013
A30: 659 | B30: מקפת משלימה-מניות | C30: 2146 | D30: מניות | E30: 0.001 | F30: 0.0003 | G30: 0.0013
A31: 659 | B31: מקפת משלימה-שקלי טווח קצר | C31: 2147 | D31: שקלי טווח קצר | E31: 0.0002 | F31: 0.0002 | G31: 0.0004
A32: 659 | B32: מקפת משלימה-אג"ח | C32: 2148 | D32: אג"ח | E32: 0.001 | F32: 0.0002 | G32: 0.0012
A33: 659 | B33: מקפת משלימה-הלכה למקבלי קצבה החל מ-2018 | C33: 8604 | D33: הלכה למקבלי קצבה החל מ-2018 | E33: 0.001 | F33: 0.0013 | G33: 0.0023
A34: 659 | B34: מקפת משלימה-מחקה מדד s&p500 | C34: 13627 | D34: מחקה מדד s&p500 | E34: 0.0008 | F34: 0.0004 | G34: 0.0012
A35: 659 | B35: מקפת משלימה-משולב סחיר | C35: 14244 | D35: משולב סחיר | E35: 0.001 | F35: 0.0002 | G35: 0.0012
A36: 659 | B36: מקפת משלימה-עוקב מדדים גמיש | C36: 14245 | D36: עוקב מדדים גמיש | E36: 0.0013 | F36: 0.0015 | G36: 0.0028
A37: 659 | B37: מקפת משלימה-פאסיבי - מדדי מניות | C37: 14930 | D37: פאסיבי - מדדי מניות | E37: 0.001 | F37: 0.0005 | G37: 0.0015
A38: 659 | B38: מקפת משלימה-כללי | C38: 2145 | D38: כללי | E38: 0.0025 | F38: 0.0002 | G38: 0.0027
B40: מגדל ביטוח-מניות | C40: 76 | D40: מניות | E40: 0.001 | F40: 0.0003 | G40: 0.0013
B41: מגדל ביטוח-אג"ח ממשלת ישראל | C41: 68 | D41: אג"ח ממשלת ישראל | E41: 0.0002 | F41: 0.0003 | G41: 0.0005
B42: מגדל ביטוח-הלכה | C42: 185 | D42: הלכה | E42: 0.001 | F42: 0.0002 | G42: 0.0012
B43: מגדל ביטוח-כללי | C43: 17013 | D43: כללי | E43: 0.0029 | F43: 0.0003 | G43: 0.0032
B44: מגדל ביטוח-שקלי טווח קצר | C44: 1955 | D44: שקלי טווח קצר | E44: 0.0002 | F44: 0.0002 | G44: 0.0004
B45: מגדל ביטוח-אג"ח | C45: 8659 | D45: אג"ח | E45: 0.001 | F45: 0.0001896890841 | G45: 0.001189689084
B46: מגדל ביטוח-חו"ל | C46: 8660 | D46: חו"ל | E46: 0.0013 | F46: 0.0005 | G46: 0.0018
B47: מגדל ביטוח-לבני 50 ומטה | C47: 9599 | D47: לבני 50 ומטה | E47: 0.0029 | F47: 0.0003 | G47: 0.0032
B48: מגדל ביטוח-לבני 50 עד 60 | C48: 9604 | D48: לבני 50 עד 60 | E48: 0.0029 | F48: 0.0002984378805 | G48: 0.0032
B49: מגדל ביטוח-לבני 60 ומעלה | C49: 9729 | D49: לבני 60 ומעלה | E49: 0.0029 | F49: 0.0002 | G49: 0.0031
B50: מגדל ביטוח-למקבלי קצבה | C50: 9606 | D50: למקבלי קצבה | E50: 0.0029 | F50: 0.0002 | G50: 0.0031
B51: מגדל ביטוח-מסלול מחקה מדד S&P500 | C51: 13625 | D51: מסלול מחקה מדד S&P500 | E51: 0.0008 | F51: 0.0005 | G51: 0.0013
B52: מגדל ביטוח-משולב סחיר | C52: 14239 | D52: משולב סחיר | E52: 0.001 | F52: 0.0002 | G52: 0.0012
B53: מגדל ביטוח-עוקב מדדים - גמיש | C53: 14240 | D53: עוקב מדדים - גמיש | E53: 0.0013 | F53: 0.0012 | G53: 0.0025
B54: מגדל ביטוח-פאסיבי - מדדי מניות | C54: 14925 | D54: פאסיבי - מדדי מניות | E54: 0.001 | F54: 0.0005 | G54: 0.0015
B55: מגדל ביטוח-אג"ח עד 20% במניות | C55: 14926 | D55: אג"ח עד 20% במניות | E55: 0.001 | F55: 0.0002 | G55: 0.0012
A58: 7390 | B58: מגדל גמל להשקעה -כללי | C58: 7936 | D58: כללי | E58: 0.0025 | F58: 0.0003 | G58: 0.0028
A59: 7390 | B59: מגדל גמל להשקעה -הלכה | C59: 7937 | D59: הלכה | E59: 0.001 | F59: 0.0003 | G59: 0.0013
A60: 7390 | B60: מגדל גמל להשקעה -מניות | C60: 7934 | D60: מניות | E60: 0.001 | F60: 0.0003 | G60: 0.0013
A61: 7390 | B61: מגדל גמל להשקעה -חו"ל | C61: 7933 | D61: חו"ל | E61: 0.0013 | F61: 0.0005 | G61: 0.0018
A62: 7390 | B62: מגדל גמל להשקעה -אג"ח ממשלתי ישראל | C62: 7932 | D62: אג"ח ממשלתי ישראל | E62: 0.0002 | F62: 0.0003 | G62: 0.0005
A63: 7390 | B63: מגדל גמל להשקעה -שקלי טווח קצר | C63: 7931 | D63: שקלי טווח קצר | E63: 0.0002 | F63: 0.0002 | G63: 0.0004
A64: 7390 | B64: מגדל גמל להשקעה -אג"ח עד 10% מניות | C64: 7935 | D64: אג"ח עד 10% מניות | E64: 0.001 | F64: 0.0002 | G64: 0.0012
A65: 7390 | B65: מגדל גמל להשקעה -מחקה מדד S&P500 | C65: 13563 | D65: מחקה מדד s&p500 | E65: 0.0008 | F65: 0.0005 | G65: 0.0013
A66: 7390 | B66: מגדל גמל להשקעה -פאסיבי - מדדי מניות | C66: 14943 | D66: פאסיבי - מדדי מניות | E66: 0.001 | F66: 0.0005 | G66: 0.0015
A67: 7390 | B67: מגדל גמל להשקעה -אג"ח | C67: 14944 | D67: אג"ח | E67: 0.001 | F67: 0.0002 | G67: 0.0012
A69: 579 | B69: מגדל השתלמות-כללי | C69: 579 | D69: כללי | E69: 0.0025 | F69: 0.0003 | G69: 0.0028
A70: 579 | B70: מגדל השתלמות-השתלמות פאסיבי | C70: 7256 | D70: השתלמות פאסיבי | E70: 0.0013 | F70: 0.0004 | G70: 0.0017
A71: 579 | B71: מגדל השתלמות-הלכה | C71: 2048 | D71: הלכה | E71: 0.001 | F71: 0.0003 | G71: 0.0013
A72: 579 | B72: מגדל השתלמות-מניות | C72: 869 | D72: מניות | E72: 0.001 | F72: 0.0003 | G72: 0.0013
A73: 579 | B73: מגדל השתלמות-חו"ל | C73: 868 | D73: חו"ל | E73: 0.0013 | F73: 0.0005 | G73: 0.0018
A74: 579 | B74: מגדל השתלמות-אג"ח ממשלתי ישראל | C74: 865 | D74: אג"ח ממשלתי ישראל | E74: 0.0002 | F74: 0.0003 | G74: 0.0005
A75: 579 | B75: מגדל השתלמות-שקלי טווח קצר | C75: 864 | D75: שקלי טווח קצר | E75: 0.0002 | F75: 0.0002 | G75: 0.0004
A76: 579 | B76: מגדל השתלמות-אג"ח | C76: 199 | D76: אג"ח | E76: 0.001 | F76: 0.0002 | G76: 0.0012
A77: 579 | B77: מגדל השתלמות-עוקב מדד S&P500 | C77: 14668 | D77: עוקב מדד s&p500 | E77: 0.0008 | F77: 0.0001 | G77: 0.0009
A78: 579 | B78: מגדל השתלמות-פאסיבי - מדדי מניות | C78: 14945 | D78: פאסיבי - מדדי מניות | E78: 0.001 | F78: 0.0005 | G78: 0.0015
A81: 9894 | B81: מגדל חסכון לכל ילד-סיכון מועט | C81: 9896 | D81: סיכון מועט | E81: 0.0025 | F81: 0.0003 | G81: 0.0028
A82: 9894 | B82: מגדל חסכון לכל ילד-סיכון בינוני | C82: 9897 | D82: סיכון בינוני | E82: 0.0025 | F82: 0.0002 | G82: 0.0027
A83: 9894 | B83: מגדל חסכון לכל ילד-סיכון מוגבר | C83: 9898 | D83: סיכון מוגבר | E83: 0.0014 | F83: 0.0003 | G83: 0.0017
A84: 9894 | B84: מגדל חסכון לכל ילד-הלכה | C84: 9895 | D84: הלכה | E84: 0.001 | F84: 0.0003 | G84: 0.0013
A85: 744 | B85: מגדל לתגמולים ולפיצויים-לבני 50 ומטה | C85: 9779 | D85: לבני 50 ומטה | E85: 0.0025 | F85: 0.0003 | G85: 0.0028
A86: 744 | B86: מגדל לתגמולים ולפיצויים-לבני 50 עד 60 | C86: 9780 | D86: לבני 50 עד 60 | E86: 0.0025 | F86: 0.0002 | G86: 0.0027
A87: 744 | B87: מגדל לתגמולים ולפיצויים-לבני 60 ומעלה | C87: 9781 | D87: לבני 60 ומעלה | E87: 0.0025 | F87: 0.0003 | G87: 0.0028
A88: 744 | B88: מגדל לתגמולים ולפיצויים-מניות | C88: 863 | D88: מניות | E88: 0.001 | F88: 0.0003 | G88: 0.0013
A89: 744 | B89: מגדל לתגמולים ולפיצויים-חו"ל | C89: 862 | D89: חו"ל | E89: 0.0013 | F89: 0.0005 | G89: 0.0018
A90: 744 | B90: מגדל לתגמולים ולפיצויים-אג"ח ממשלתי ישראל | C90: 859 | D90: אג"ח ממשלתי ישראל | E90: 0.0002 | F90: 0.0003 | G90: 0.0005
A91: 744 | B91: מגדל לתגמולים ולפיצויים-שקלי טווח קצר | C91: 858 | D91: שקלי טווח קצר | E91: 0.0002 | F91: 0.0002 | G91: 0.0004
A92: 744 | B92: מגדל לתגמולים ולפיצויים-אג"ח עד 10% מניות | C92: 8012 | D92: אג"ח עד 10% מניות | E92: 0.001 | F92: 0.0002 | G92: 0.0012
A93: 744 | B93: מגדל לתגמולים ולפיצויים-מחקה מדד s&p500 | C93: 13565 | D93: מחקה מדד s&p500 | E93: 0.0008 | F93: 0.0005 | G93: 0.0013
A94: 744 | B94: מגדל לתגמולים ולפיצויים-משולב סחיר | C94: 14229 | D94: משולב סחיר | E94: 0.001 | F94: 0.0001 | G94: 0.0011
A95: 744 | B95: מגדל לתגמולים ולפיצויים-עוקב מדדים - גמיש | C95: 14228 | D95: עוקב מדדים - גמיש | E95: 0.0013 | F95: 0.0013 | G95: 0.0026

Sheet חישוב (hidden)
A1: [הנתונים המסומנים בצהוב יעודכנו באופן אוטומטי על פי נתוני העמית ושיעורי ההוצאות יעודכנו לפי הטבלה הצדדית של השיעורים הצפויים והקודמים ביחס לכל מסלול ההשקעה]
G2: שם קובץ | H2: alotMakefetP.docx
A3: שם העמית/מבוטח | D3: תאריך | E3: =DATE(YEAR(NOW()),MONTH(NOW()),DAY(NOW())) -> 2024-02-20 | G3: שם קובץ לשמירה | H3: =MID(michtav,5,LEN(michtav)-9) -> MakefetP
A4: מספר זיהוי
A5: מוצר | B5: מקפת משלימה
A6: סוג עמית | B6: קיים
A7: מספר חשבון/פוליסה
A8: צבירה
A9: דמי ניהול מצבירה | B9: 0.005
A10: דמי ניהול מפרמיה | B10: 0.005
A13: להמחשה בלבד: | B13: עלות שנתית כוללת | C13: לעמית קיים
A15: סוג החיוב | B15: סכום צבירה/הפקדה שנתית | C15: מסלול השקעות | D15: שיעור | E15: סה"כ
A16: דמי ניהול מצבירה (בהתאם לצבירת החיסכון המועד החישוב) | B16: =B8 -> 0 | D16: =B9 -> 0.005 | H16: הצגת שיעור העלות השנתית הצפויה מהווה תחזית בלבד, ומבוססת על מגוון רחב של הנחות אשר חלקן מבוסס על נתוני שנים קודמות ועל נוסחת המרה אחידה, ואשר כולן נערכו בהתבסס על המידע שהיה זמין לגוף המוסדי בתחילת שנת הדיווח שבגינה מוצגת העלות השנתית הצפויה ובהתאם לנתונים האמורים. שיעור ההוצאות הישירות הצפוי בשל ביצוע השקעות מוצג לכל מסלול השקעה ובהתאם לצבירה בכל מסלול השקעה יחסית לצבירה הכוללת בכל מסלולים. אי לכך, אין בהצגה זו בכדי לחייב את הגוף המוסדי לגביית עלויות בהתאם לשיעור העלות השנתית הצפויה, וכי השיעור בפועל ייקבע בין היתר, בהתאם להשקעות שיבוצעו במהלך השנה, לתשואות שיושגו במהלך השנה על נכסי העמיתים/המבוטחים במסלול ההשקעה ובהתאם לסך המשיכות וההפקדות שיבוצעו בחשבון במהלך השנה. כמו כן, הגוף המוסדי אינו מחויב בעדכון או שינוי שיעור העלות השנתית הצפויה על מנת לשקף אירועים או נסיבות שיחולו לאחר הצגתו. | I16: הצגת שיעור העלות השנתית הצפויה מהווה תחזית בלבד, ומבוססת על מגוון רחב של הנחות אשר חלקן מבוסס על נתוני שנים קודמות ועל נוסחת המרה אחידה, ואשר כולן נערכו בהתבסס על המידע שהיה זמין לגוף המוסדי בתחילת שנת הדיווח שבגינה מוצגת העלות השנתית הצפויה ובהתאם לנתונים האמורים. שיעור ההוצאות הישירות הצפוי בשל ביצוע השקעות מוצג לכל מסלול השקעה ובהתאם לצבירה בכל מסלול השקעה יחסית לצבירה הכוללת בכל מסלולים. אי לכך, אין בהצגה זו בכדי לחייב את הגוף המוסדי לגביית עלויות בהתאם לשיעור העלות השנתית הצפויה, וכי השיעור בפועל ייקבע בין היתר, בהתאם להשקעות שיבוצעו במהלך השנה, לתשואות שיושגו במהלך השנה על נכסי העמיתים/המבוטחים במסלול ההשקעה ובהתאם לסך המשיכות וההפקדות שיבוצעו בחשבון במהלך השנה. כמו כן, הגוף המוסדי אינו מחויב בעדכון או שינוי שיעור העלות השנתית הצפויה על מנת לשקף אירועים או נסיבות שיחולו לאחר הצגתו. | J16: הצגת שיעור העלות השנתית הצפויה מהווה תחזית בלבד, ומבוססת על מגוון רחב של הנחות אשר חלקן מבוסס על נתוני שנים קודמות ועל נוסחת המרה אחידה, ואשר כולן נערכו בהתבסס על המידע שהיה זמין לגוף המוסדי בתחילת שנת הדיווח שבגינה מוצגת העלות השנתית הצפויה ובהתאם לנתונים האמורים. שיעור ההוצאות הישירות הצפוי בשל ביצוע השקעות מוצג לכל מסלול השקעה ובהתאם לצבירה בכל מסלול השקעה יחסית לצבירה הכוללת בכל מסלולים. אי לכך, אין בהצגה זו בכדי לחייב את הגוף המוסדי לגביית עלויות בהתאם לשיעור העלות השנתית הצפויה, וכי השיעור בפועל ייקבע בין היתר, בהתאם להשקעות שיבוצעו במהלך השנה, לתשואות שיושגו במהלך השנה על נכסי העמיתים/המבוטחים במסלול ההשקעה ובהתאם לסך המשיכות וההפקדות שיבוצעו בחשבון במהלך השנה. כמו כן, הגוף המוסדי אינו מחויב בעדכון או שינוי שיעור העלות השנתית הצפויה על מנת לשקף אירועים או נסיבות שיחולו לאחר הצגתו.
A17: דמי ניהול לשנה מהפקדה (לפי הפקדה חודשית אחרונה), בגמל אין לעדכן שיעור ד"נ | D17: =B10 -> 0.005
A18: הוצאות ישירות כולל דמי עמלת ניהול חיצוני | C18: מקפת משלימה-כללי | D18: =IF(C18<>"",VLOOKUP(C18,'הוצאות ניהול השקעות'!$B$2:$G$95,6,0),"") -> 0.0027 | E18: =IF(D18<>"",$D$16+$D$17/20+H18+I18,"") -> 0.00795 | F18: =IF(D18<>"",$D$16,"") -> 0.005 | G18: =IF(D18<>"",$D$17/20,"") -> 0.00025 | H18: =IF(C18<>"",VLOOKUP(C18,'הוצאות ניהול השקעות'!$B$2:$G$95,4,0),"") -> 0.0025 | I18: =IF(C18<>"",VLOOKUP(C18,'הוצאות ניהול השקעות'!$B$2:$G$95,5,0),"") -> 0.0002
A19: הוצאות ישירות כולל דמי עמלת ניהול חיצוני | D19: =IF(C19<>"",VLOOKUP(C19,'הוצאות ניהול השקעות'!$B$2:$G$95,6,0),"") ->  | E19: =IF(D19<>"",$D$16+$D$17/20+H19+I19,"") ->  | F19: =IF(D19<>"",$D$16,"") ->  | G19: =IF(D19<>"",$D$17/20,"") ->  | H19: =IF(C19<>"",VLOOKUP(C19,'הוצאות ניהול השקעות'!$B$2:$G$95,4,0),"") ->  | I19: =IF(C19<>"",VLOOKUP(C19,'הוצאות ניהול השקעות'!$B$2:$G$95,5,0),"") -> 
A20: הוצאות ישירות כולל דמי עמלת ניהול חיצוני | D20: =IF(C20<>"",VLOOKUP(C20,'הוצאות ניהול השקעות'!$B$2:$G$95,6,0),"") ->  | H20: =IF(C20<>"",VLOOKUP(C20,'הוצאות ניהול השקעות'!$B$2:$G$95,4,0),"") ->  | I20: =IF(C20<>"",VLOOKUP(C20,'הוצאות ניהול השקעות'!$B$2:$G$95,5,0),"") -> 
A21: הוצאות ישירות כולל דמי עמלת ניהול חיצוני | D21: =IF(C21<>"",VLOOKUP(C21,'הוצאות ניהול השקעות'!$B$2:$G$95,6,0),"") ->  | H21: =IF(C21<>"",VLOOKUP(C21,'הוצאות ניהול השקעות'!$B$2:$G$95,4,0),"") ->  | I21: =IF(C21<>"",VLOOKUP(C21,'הוצאות ניהול השקעות'!$B$2:$G$95,5,0),"") -> 
A22: הוצאות ישירות כולל דמי עמלת ניהול חיצוני | D22: =IF(C22<>"",VLOOKUP(C22,'הוצאות ניהול השקעות'!$B$2:$G$95,6,0),"") ->  | H22: =IF(C22<>"",VLOOKUP(C22,'הוצאות ניהול השקעות'!$B$2:$G$95,4,0),"") ->  | I22: =IF(C22<>"",VLOOKUP(C22,'הוצאות ניהול השקעות'!$B$2:$G$95,5,0),"") -> 
A23: הוצאות ישירות כולל דמי עמלת ניהול חיצוני | D23: =IF(C23<>"",VLOOKUP(C23,'הוצאות ניהול השקעות'!$B$2:$G$95,6,0),"") ->  | H23: =IF(C23<>"",VLOOKUP(C23,'הוצאות ניהול השקעות'!$B$2:$G$95,4,0),"") ->  | I23: =IF(C23<>"",VLOOKUP(C23,'הוצאות ניהול השקעות'!$B$2:$G$95,5,0),"") -> 
A25: בדיקה | B25: =IF(SUM(B18:B23)=B16,"תקין","צבירה לא תקינה") -> תקין
A28: להמחשה בלבד: | B28: עלות שנתית כוללת | C28: לעמית חדש - לפי דמי ניהול מהפקדה חלקי 20
A30: סוג החיוב | B30: סכום צבירה/הפקדה שנתית | C30: מסלול השקעות | D30: שיעור | E30: סה"כ
A31: דמי ניהול מצבירה (לפי הפקדה חודשית צפויה מוכפלת ב- 12) | D31: 0.005 | E31: =D31 -> 0.005
A32: דמי ניהול לשנה מהפקדה | D32: 0.03 | E32: =D32/20 -> 0.0015
A34: הוצאות ישירות כולל דמי עמלת ניהול חיצוני | B34: 0.145 | C34: מקפת אישית -כללי | D34: =VLOOKUP(C34,#REF!,8,0) ->  | E34: =D34*B34/$C$39 -> 
B35: שיעור תגמולים
A36: הוצאות ישירות כולל דמי עמלת ניהול חיצוני | B36: 0.083 | D36: 0 | E36: =D36*B36/$C$39 -> 0
B37: שיעור פיצויים
A39: סך שיעורי הפרשות בתגמולים ובפיצויים: | C39: =B34+B36 -> 0.228 | D39: העלות השנתית הצפויה: | E39: =IF(C40="תקין",SUM(E31:E37),"שגיאה בשיעורי הפרשות") -> 
C40: =IF('קובץ עזר'!E6=4,"תקין",'קובץ עזר'!E2&" "&'קובץ עזר'!E3&" "&'קובץ עזר'!E4&" "&'קובץ עזר'!E5) -> תקין
A42: להמחשה בלבד: | B42: עלות שנתית כוללת | C42: לעמית חדש - גמל
A45: סוג החיוב | B45: סכום צבירה/הפקדה שנתית | C45: מסלול השקעות | D45: שיעור | E45: סה"כ
A46: דמי ניהול מצבירה (לפי הפקדה חודשית צפויה מוכפלת ב- 12) | D46: 0.005 | E46: =D46 -> 0.005
A47: הוצאות ישירות כולל דמי עמלת ניהול חיצוני | B47: 0.2 | D47: 0 | E47: =D47*B47 -> 0
B48: שיעור חלוקה למסלול
A49: הוצאות ישירות כולל דמי עמלת ניהול חיצוני | B49: 0.2 | C49: מגדל לתגמולים ולפיצויים-אג"ח עד 10% מניות | D49: =VLOOKUP(C49,#REF!,8,0) ->  | E49: =D49*B49 -> 
B50: שיעור חלוקה למסלול
A51: הוצאות ישירות כולל דמי עמלת ניהול חיצוני | B51: 0.05 | C51: מגדל לתגמולים ולפיצויים-מחקה מדד s&p500 | D51: =VLOOKUP(C51,#REF!,8,0) ->  | E51: =D51*B51 -> 
B52: שיעור חלוקה למסלול
A53: הוצאות ישירות כולל דמי עמלת ניהול חיצוני | B53: 0.05 | C53: מגדל לתגמולים ולפיצויים-עוקב מדדים - גמיש | D53: =VLOOKUP(C53,#REF!,8,0) ->  | E53: =D53*B53 -> 
B54: שיעור חלוקה למסלול
A55: הוצאות ישירות כולל דמי עמלת ניהול חיצוני | B55: 0.05 | C55: מגדל לתגמולים ולפיצויים-שקלי טווח קצר | D55: =VLOOKUP(C55,#REF!,8,0) ->  | E55: =D55*B55 -> 
B56: שיעור חלוקה למסלול
A57: הוצאות ישירות כולל דמי עמלת ניהול חיצוני | B57: 0.1 | C57: מגדל לתגמולים ולפיצויים-משולב סחיר | D57: =VLOOKUP(C57,#REF!,8,0) ->  | E57: =D57*B57 -> 
B58: שיעור חלוקה למסלול
A59: הוצאות ישירות כולל דמי עמלת ניהול חיצוני | B59: 0.35 | C59: מגדל לתגמולים ולפיצויים-אג"ח ממשלתי ישראל | D59: =VLOOKUP(C59,#REF!,8,0) ->  | E59: =D59*B59 -> 
B60: שיעור חלוקה למסלול
A62: בדיקה | B62: =IF(SUM(B47,B49,B51,B53,B55,B57,B59)=1,"תקין","השיעורים במסלול אינם מסתכמים ב- 100%") -> תקין | D62: העלות השנתית הצפויה: | E62: =IF(B62="תקין",SUM(E46:E60),"שגיאה בחלוקה לשיעורים בכל מסלול") -> 
A65: הסבר:
A66: לעמית קיים
A67: שיעור העלות הכוללת מוצג להמחשה בלבד על ידי סכימת השיעורים הבאים:
A68: 1. דמי ניהול מצבירה-שיעור שנתי של דמי ניהול מצבירה כפי שמעודכן בתכנית/פוליסות של העמית/מבוטח
A69: 2. דמי ניהול מהפקדה - שיעור שיחושב על ידי חלוקת שיעור דמי הניהול מהפקדה ב- 20 * (נתון לא רלוונטי לגמל והשתלמות)
A70: 3. הוצאות ניהול ישירות - הנתון כולל עמלת ניהול חיצוני ככל שקיים במסלול. שיעור ההוצאות בכל מסלול השקעה יוצג בהתאם לצבירה במסלול יחסית לסך הצבירה הכוללת בפוליסה/תכנית במועד החישוב.
B71: במקרה שלעמית/מבוטח מסלול השקעות אחד לכל הצבירה בתוכנית, ילקחו השיעורים כפי שהם במסלול שחל עליו והחישוב האמור לפיצול בין מסלולים יתייתר
B72: שיעור ההוצאות הישירות הצפויות מבוסס על סכימת שיעור ההוצאות שאינן מסוג עמלת ניהול חיצוני כפי שנגבה בפועל בשנת הכספים הקודמת למועד החישוב, ושיעור עמלת ניהול חיצוני לפי השיעור הצפוי בשנת הכספים הנוכחית כפי שמפורסם באתר האינטרנט
A73: * יחס של 1/20 פורסם על ידי רשות שוק ההון ביטוח וחיסכון בחוזר לחוזר "ברירת מחדל" (חוזר הוראות לעניין בחירת קופת גמל)
A75: לעמית חדש
A76: שיעור העלות הכוללת מוצג להמחשה בלבד על ידי סכימת השיעורים הבאים:
A77: 1. דמי ניהול מצבירה- כפי שמחושב ביחס לעמית קיים
A78: 2. דמי ניהול מהפקדה - כפי שמחושב ביחס לעמית קיים (נתון לא רלוונטי לגמל ולהשתלמות)
A79: 3. הוצאות ניהול ישירות - הנתון כולל עמלת ניהול חיצוני ככל שקיים במסלול. שיעור ההוצאות בכל מסלול השקעה יוצג בהתאם לשיעורי ההפקדות ברכיב (פיצויים/תגמולים) יחסית לסך שיעור ההפקדה בתוכנית (במקרה שנבחר מסלול השקעה שונה לכל רכיב) .
B80: בגמל והשתלמות - השיעור יחושב לפי חלוקת האחוזים שנבחרו לכל מסלול השקעה
B81: במקרה שלעמית/מבוטח מסלול השקעות אחד לכל הפקדותיו, ילקחו השיעורים כפי שהם במסלול בחר והחישוב האמור לפיצול בין מסלולים יתייתר
B82: שיעור ההוצאות הישירות הצפויות מבוסס על סכימת שיעור ההוצאות שאינן מסוג עמלת ניהול חיצוני כפי שנגבה בפועל בשנת הכספים הקודמת למועד החישוב, ושיעור עמלת ניהול חיצוני לפי השיעור הצפוי בשנת הכספים הנוכחית כפי שמפורסם באתר האינטרנט
A86: "הצגת שיעור העלות השנתית הצפויה מהווה תחזית בלבד, ומבוססת על מגוון רחב של הנחות אשר חלקן מבוסס על נתוני שנים קודמות, ואשר כולן נערכו בהתבסס על המידע
A87: שהיה זמין לגוף המוסדי בתחילת שנת הדיווח שבגינה מוצגת העלות השנתית הצפויה. אי לכך, אין בהצגה זו בכדי לחייב את הגוף המוסדי לגביית עלויות בהתאם לשיעור העלות השנתית הצפויה, וכי השיעור בפועל ייקבע, בין היתר,
A88: בהתאם להשקעות שיבוצעו במהלך השנה, לתשואות שיושגו במהלך השנה על נכסי העמיתים במסלול ההשקעה ובהתאם לסך ההפקדות שיופקדו לחשבון במהלך השנה. כמו כן, הגוף המוסדי אינו מחויב בעדכון או שינוי
A89: שיעור העלות השנתית הצפויה על מנת לשקף אירועים או נסיבות שיחולו לאחר הצגתו."

Sheet פנסיה ויוזמה (hidden)
A1: מוצר | B1: מס' קופה | C1: משולב | D1: מס' מסלול | E1: שם מסלול | F1: שיעור מגבלה 2023 | G1: שיעור הוצאות לניהול השקעות | H1: מזה: שיעור ההוצאות לניהול חיצוני | I1: שיעור הוצאות שאינן ניהול חיצוני (לפי 2022) | J1: שיעור ההוצאות הישירות הצפויות
A2: מקפת אישית | B2: 162 | C2: =A2&"-"&E2 -> מקפת אישית -כללי | D2: 2102 | E2: כללי | F2: 0.0025 | G2: 0.001727867658 | H2: 0.001488983332 | I2: =G2-H2 -> 0.0002388843263 | J2: =MIN(I2+F2,0.25%) -> 0.0025
A3: מקפת אישית | B3: 162 | C3: =A3&"-"&E3 -> מקפת אישית -לבני 50 ומטה | D3: 8801 | E3: לבני 50 ומטה | F3: 0.0022 | G3: 0.001440219756 | H3: 0.001207926038 | I3: =G3-H3 -> 0.0002322937181 | J3: =MIN(I3+F3,0.25%) -> 0.002432293718
A4: מקפת אישית | B4: 162 | C4: מקפת אישית -לבני 50 עד 60 | D4: 8802 | E4: לבני 50 עד 60 | F4: 0.0022 | G4: 0.001314715665 | H4: 0.001110509422 | I4: 0.0002042062429 | J4: 0.002404206243
A5: מקפת אישית | B5: 162 | C5: מקפת אישית -לבני 60 ומעלה | D5: 8803 | E5: לבני 60 ומעלה | F5: 0.0022 | G5: 0.001040011703 | H5: 0.0008667731692 | I5: 0.0001732385333 | J5: 0.002373238533
A6: מקפת אישית | B6: 162 | C6: מקפת אישית -לזכאים קיימים לקצבה | D6: 8602 | E6: לזכאים קיימים לקצבה | F6: 0.001 | I6: 0 | J6: 0.001
A7: מקפת אישית | B7: 162 | C7: מקפת אישית -פנסיונרים חדשים | D7: 2207 | E7: פנסיונרים חדשים | F7: 0.001 | I7: 0 | J7: 0.001
A8: מקפת אישית | B8: 162 | C8: מקפת אישית -למקבלי קצבה החל מ-2018 | D8: 12145 | E8: למקבלי קצבה החל מ-2018 | F8: 0.0013 | I8: 0 | J8: 0.0013
A9: מקפת אישית | B9: 162 | C9: מקפת אישית -הלכה | D9: 2112 | E9: הלכה | F9: 0.001 | G9: 0.0006779031668 | H9: 0.000503532994 | I9: 0.0001743701728 | J9: 0.001174370173
A10: מקפת אישית | B10: 162 | C10: מקפת אישית -מניות | D10: 2142 | E10: מניות | F10: 0.001 | G10: 0.0006260107937 | H10: 0.0003803812399 | I10: 0.0002456295538 | J10: 0.001245629554
A11: מקפת אישית | B11: 162 | C11: מקפת אישית -שקלי טווח קצר | D11: 2143 | E11: שקלי טווח קצר | F11: 0.0002 | G11: 0.0001009411358 | H11: 0 | I11: 0.0001009411358 | J11: 0.0003009411358
A12: מקפת אישית | B12: 162 | C12: מקפת אישית -אג"ח | D12: 2144 | E12: אג"ח | F12: 0.0008 | G12: 0.0003243916703 | H12: 0.000211208802 | I12: 0.0001131828683 | J12: 0.0009131828683
A13: מקפת אישית | B13: 162 | C13: מקפת אישית -פנסיונרים הלכה | D13: 12146 | E13: פנסיונרים הלכה | F13: 0.0008 | I13: 0 | J13: 0.0008
A14: מקפת אישית | B14: 162 | C14: מקפת אישית -מניות למקבלי קצבה | D14: 12147 | E14: מניות למקבלי קצבה | F14: 0.00056 | I14: 0 | J14: 0.00056
A15: מקפת אישית | B15: 162 | C15: מקפת אישית -אג"ח למקבלי קצבה | D15: 12148 | E15: אג"ח למקבלי קצבה | F15: 0.0005 | I15: 0 | J15: 0.0005
A16: מקפת אישית | B16: 162 | C16: מקפת אישית -הלכה למקבלי קצבה קיימים | D16: 8603 | E16: הלכה למקבלי קצבה קיימים | F16: 0.0008 | I16: 0 | J16: 0.0008
A17: מקפת אישית | B17: 162 | C17: מקפת אישית -מחקה מדד s&p500 | D17: 13572 | E17: מחקה מדד s&p500 | F17: 0.0008 | G17: 0.0006868461889 | H17: 0.0001529808253 | I17: 0.0005338653635 | J17: 0.001333865364
A18: מקפת אישית | B18: 162 | C18: מקפת אישית -משולב סחיר | D18: 14242 | E18: משולב סחיר | F18: 0.0008 | I18: 0 | J18: 0.0008
A19: מקפת אישית | B19: 162 | C19: מקפת אישית -עוקב מדדים גמיש | D19: 14243 | E19: עוקב מדדים גמיש | F19: 0.001 | I19: 0 | J19: 0.001
A20: מקפת משלימה | B20: 659 | C20: מקפת משלימה-כללי | D20: 2145 | E20: כללי | F20: 0.0025 | G20: 0.00164990717 | H20: 0.001432859655 | I20: 0.0002170475154 | J20: 0.0025
A21: מקפת משלימה | B21: 659 | C21: מקפת משלימה-לבני 50 ומטה | D21: 9453 | E21: לבני 50 ומטה | F21: 0.0025 | G21: 0.00137310214 | H21: 0.001127201848 | I21: 0.000245900292 | J21: 0.0025
A22: מקפת משלימה | B22: 659 | C22: מקפת משלימה-לבני 50 עד 60 | D22: 9454 | E22: לבני 50 עד 60 | F22: 0.0025 | G22: 0.00114099895 | H22: 0.0008619928787 | I22: 0.0002790060708 | J22: 0.0025
A23: מקפת משלימה | B23: 659 | C23: מקפת משלימה-לבני 60 ומעלה | D23: 9455 | E23: לבני 60 ומעלה | F23: 0.0025 | G23: 0.0006696435116 | H23: 0.0004609031044 | I23: 0.0002087404072 | J23: 0.0025
A24: מקפת משלימה | B24: 659 | C24: מקפת משלימה-פנסיונרים חדשים | D24: 2208 | E24: פנסיונרים חדשים | F24: 0.001 | I24: 0 | J24: 0.001
A25: מקפת משלימה | B25: 659 | C25: מקפת משלימה-למקבלי קצבה החל מ-2018 | D25: 12152 | E25: למקבלי קצבה החל מ-2018 | F25: 0.0025 | I25: 0 | J25: 0.0025
A26: מקפת משלימה | B26: 659 | C26: מקפת משלימה-הלכה | D26: 2149 | E26: הלכה | F26: 0.0013 | G26: 0.001108409352 | H26: 0.0006611339735 | I26: 0.0004472753781 | J26: 0.001747275378
A27: מקפת משלימה | B27: 659 | C27: מקפת משלימה-מניות | D27: 2146 | E27: מניות | F27: 0.0012 | G27: 0.0008115780852 | H27: 0.000486612965 | I27: 0.0003249651202 | J27: 0.00152496512
A28: מקפת משלימה | B28: 659 | C28: מקפת משלימה-שקלי טווח קצר | D28: 2147 | E28: שקלי טווח קצר | F28: 0.0002 | G28: 0.0001772017463 | H28: 0 | I28: 0.0001772017463 | J28: 0.0003772017463
A29: מקפת משלימה | B29: 659 | C29: מקפת משלימה-אג"ח | D29: 2148 | E29: אג"ח | F29: 0.001 | G29: 0.0009353159947 | H29: 0.0003015977603 | I29: 0.0006337182343 | J29: 0.001633718234
A30: מקפת משלימה | B30: 659 | C30: מקפת משלימה-הלכה למקבלי קצבה החל מ-2018 | D30: 8604 | E30: הלכה למקבלי קצבה החל מ-2018 | F30: 0.0013 | I30: 0 | J30: 0.0013
A31: מקפת משלימה | B31: 659 | C31: מקפת משלימה-מחקה מדד s&p500 | D31: 1327 | E31: מחקה מדד s&p500 | F31: 0.001 | G31: 0.0008786910599 | H31: 0.0001780459173 | I31: 0.0007006451427 | J31: 0.001700645143
A32: מקפת משלימה | B32: 659 | C32: מקפת משלימה-משולב סחיר | D32: 14244 | E32: משולב סחיר | F32: 0.001 | I32: 0 | J32: 0.001
A33: מקפת משלימה | B33: 659 | C33: מקפת משלימה-עוקב מדדים גמיש | D33: 14245 | E33: עוקב מדדים גמיש | F33: 0.0013 | I33: 0 | J33: 0.0013
A34: יוזמה קרן פנסיה לעצמאים | B34: 414 | C34: יוזמה קרן פנסיה לעצמאים- | F34: 0.0015 | I34: 0 | J34: 0.0015
A35: יוזמה קרן פנסיה לעצמאים עמיתי ביניים | B35: 414 | C35: יוזמה קרן פנסיה לעצמאים עמיתי ביניים- | F35: 0.0015 | I35: 0 | J35: 0.0015

Sheet גמל והשתלמות (hidden)
A1: מוצר | B1: מס' קופה | C1: מס' מסלול | D1: שם מסלול | E1: שיעור מגבלה 2023 | F1: שיעור הוצאות לניהול השקעות | G1: מזה: שיעור ההוצאות לניהול חיצוני | H1: שיעור הוצאות שאינן ניהול חיצוני (לפי 2022) | I1: שיעור ההוצאות הישירות הצפויות
A2: מגדל גמל להשקעה | C2: 7936 | D2: כללי | E2: =0.25/100 -> 0.0025 | F2: =0.14/100 -> 0.0014 | G2: 0.0012 | H2: =F2-G2 -> 0.0002 | I2: =MIN(H2+E2,0.25%) -> 0.0025
A3: מגדל גמל להשקעה | C3: 7937 | D3: הלכה | E3: 0.0013 | F3: 0.001 | G3: 0.0007 | H3: =F3-G3 -> 0.0003 | I3: =MIN(H3+E3,0.25%) -> 0.0016
A4: מגדל גמל להשקעה | C4: 7934 | D4: מניות | E4: 0.0012 | F4: 0.0008 | G4: 0.0005 | H4: 0.0003 | I4: 0.0015
A5: מגדל גמל להשקעה | C5: 7933 | D5: חו"ל | E5: 0.0025 | F5: 0.0018 | G5: 0.0014 | H5: 0.0004 | I5: 0.0025
A6: מגדל גמל להשקעה | C6: 7932 | D6: אג"ח ממשלתי ישראל | E6: 0.0002 | F6: 0.0003 | H6: 0.0003 | I6: 0.0005
A7: מגדל גמל להשקעה | C7: 7931 | D7: שקלי טווח קצר | E7: 0.0002 | F7: 0.0002 | H7: 0.0002 | I7: 0.0004
A8: מגדל גמל להשקעה | C8: 7935 | D8: אג"ח עד 10% מניות | E8: 0.001 | F8: 0.0005 | G8: 0.0003 | H8: 0.0002 | I8: 0.0012
A9: מגדל גמל להשקעה | C9: 13563 | D9: s&p500 | E9: 0.001 | F9: 0.0009 | G9: 0.0002 | H9: 0.0007 | I9: 0.0017
A10: מגדל השתלמות | C10: 579 | D10: כללי | E10: 0.0025 | F10: 0.0019 | G10: 0.0016 | H10: 0.0003 | I10: 0.0025
A11: מגדל השתלמות | C11: 7253 | D11: לבני 50 ומטה | E11: 0.0025 | F11: 0.0015 | G11: 0.0012 | H11: 0.0003 | I11: 0.0025
A12: מגדל השתלמות | C12: 7254 | D12: לבני 50 עד 60 | E12: 0.0025 | F12: 0.0014 | G12: 0.001 | H12: 0.0004 | I12: 0.0025
A13: מגדל השתלמות | C13: 470 | D13: לבני 60 ומעלה | E13: 0.0025 | F13: 0.0009 | G13: 0.0007 | H13: 0.0002 | I13: 0.0025
A14: מגדל השתלמות | C14: 7256 | D14: השתלמות פאסיבי | E14: 0.0013 | F14: 0.0011 | G14: 0.0008 | H14: 0.0003 | I14: 0.0016
A15: מגדל השתלמות | C15: 2048 | D15: הלכה | E15: 0.0013 | F15: 0.001 | G15: 0.0007 | H15: 0.0003 | I15: 0.0016
A16: מגדל השתלמות | C16: 869 | D16: מניות | E16: 0.0012 | F16: 0.0008 | G16: 0.0005 | H16: 0.0003 | I16: 0.0015
A17: מגדל השתלמות | C17: 868 | D17: חו"ל | E17: 0.0025 | F17: 0.0016 | G17: 0.0013 | H17: 0.0003 | I17: 0.0025
A18: מגדל השתלמות | C18: 865 | D18: אג"ח ממשלתי ישראל | E18: 0.0002 | F18: 0.0003 | H18: 0.0003 | I18: 0.0005
A19: מגדל השתלמות | C19: 864 | D19: שקלי טווח קצר | E19: 0.0002 | F19: 0.0001 | H19: 0.0001 | I19: 0.0003
A20: מגדל השתלמות | C20: 199 | D20: אג"ח | E20: 0.001 | F20: 0.0004 | G20: 0.0003 | H20: 0.0001 | I20: 0.0011
A21: מגדל השתלמות | C21: 599 | D21: אג"ח עד 10% מניות | E21: 0.001 | F21: 0.0005 | G21: 0.0003 | H21: 0.0002 | I21: 0.0012
A22: מגדל חסכון לכל ילד | C22: 9896 | D22: סיכון מועט | E22: 0.0025 | F22: 0.0009 | G22: 0.0006 | H22: 0.0003 | I22: 0.0025
A23: מגדל חסכון לכל ילד | C23: 9897 | D23: סיכון בינוני | E23: 0.0025 | F23: 0.0011 | G23: 0.0009 | H23: 0.0002 | I23: 0.0025
A24: מגדל חסכון לכל ילד | C24: 9898 | D24: סיכון מוגבר | E24: 0.0012 | F24: 0.0009 | G24: 0.0006 | H24: 0.0003 | I24: 0.0015
A25: מגדל חסכון לכל ילד | C25: 9895 | D25: הלכה | E25: 0.0013 | F25: 0.001 | G25: 0.0007 | H25: 0.0003 | I25: 0.0016
A26: מגדל לתגמולים ולפיצויים | C26: 9779 | D26: לבני 50 ומטה | E26: 0.0025 | F26: 0.0017 | G26: 0.0014 | H26: 0.0003 | I26: 0.0025
A27: מגדל לתגמולים ולפיצויים | C27: 9780 | D27: לבני 50 עד 60 | E27: 0.0025 | F27: 0.0019 | G27: 0.0017 | H27: 0.0002 | I27: 0.0025
A28: מגדל לתגמולים ולפיצויים | C28: 9781 | D28: לבני 60 ומעלה | E28: 0.0025 | F28: 0.0012 | G28: 0.0009 | H28: 0.0003 | I28: 0.0025
A29: מגדל לתגמולים ולפיצויים | C29: 863 | D29: מניות | E29: 0.0012 | F29: 0.0008 | G29: 0.0005 | H29: 0.0003 | I29: 0.0015
A30: מגדל לתגמולים ולפיצויים | C30: 862 | D30: חו"ל | E30: 0.0025 | F30: 0.0016 | G30: 0.0013 | H30: 0.0003 | I30: 0.0025
A31: מגדל לתגמולים ולפיצויים | C31: 859 | D31: אג"ח ממשלתי ישראל | E31: 0.0002 | F31: 0.0003 | H31: 0.0003 | I31: 0.0005
A32: מגדל לתגמולים ולפיצויים | C32: 858 | D32: שקלי טווח קצר | E32: 0.0002 | F32: 0.0002 | H32: 0.0002 | I32: 0.0004
A33: מגדל לתגמולים ולפיצויים | C33: 8012 | D33: אג"ח עד 10% מניות | E33: 0.001 | F33: 0.0005 | G33: 0.0003 | H33: 0.0002 | I33: 0.0012
A34: מגדל לתגמולים ולפיצויים | C34: 13565 | D34: מחקה מדד s&p500 | E34: 0.001 | F34: 0.001 | G34: 0.0002 | H34: 0.0008 | I34: 0.0018
A35: מגדל לתגמולים ולפיצויים | C35: 14229 | D35: משולב סחיר | E35: 0.001 | H35: 0 | I35: 0.001
A36: מגדל לתגמולים ולפיצויים | C36: 14228 | D36: עוקב מדדים - גמיש | E36: 0.0013 | H36: 0 | I36: 0.0013

Sheet ביטוח (hidden)
A1: מוצר | B1: מס' קופה | C1: מס' מסלול | D1: שם מסלול | E1: שיעור מגבלה 2023 | F1: שיעור הוצאות לניהול השקעות | G1: מזה: שיעור ההוצאות לניהול חיצוני | H1: שיעור הוצאות שאינן ניהול חיצוני (לפי 2022) | I1: שיעור ההוצאות הישירות הצפויות
A2: מגדל | B2: 17010 | D2: משתתף ברווחים קרן ח' | E2: 0.0029
A3: מגדל | B3: 17011 | D3: משתתף ברווחים קרן ט' | E3: 0.0029
A4: מגדל | B4: 17012 | D4: משתתף ברווחים קרן י' | E4: 0.0029
A5: מגדל | B5: 17013 | D5: משתתף ברווחים קרן ' החדשה | E5: 0.0025
A6: מגדל | B6: 9599 | D6: לבני 50 ומטה מנוהל | E6: 0.0025
A7: מגדל | B7: 9604 | D7: לבני 50 עד 60 מנוהל | E7: 0.0025
A8: מגדל | B8: 9729 | D8: לבני 60 ומעלה מנוהל | E8: 0.0025
B9: תוספת שלי | D9: לבני 50 ומטה לא מנוהל | E9: 0.0025
B10: תוספת שלי | D10: לבני 50 עד 60 לא מנוהל | E10: 0.0025
B11: תוספת שלי | D11: לבני 60 ומעלה לא מנוהל | E11: 0.0025
A12: מגדל | B12: 75 | D12: כללי 3 עד 65% מניות | E12: 0.0015
A13: מגדל | B13: 9606 | D13: למקבלי קצבה | E13: 0.0025
A14: מגדל | C14: 185 | D14: הלכה | E14: 0.0013
A15: מגדל | C15: 76 | D15: מניות | E15: 0.0012
A16: מגדל | C16: 8660 | D16: חו"ל | E16: 0.0025
A17: מגדל | C17: 68 | D17: אג"ח ממשלת ישראל | E17: 0.0002
A18: מגדל | C18: 1955 | D18: שקלי טווח קצר | E18: 0.0002
A19: מגדל | C19: 8659 | D19: אג"ח | E19: 0.001
A20: מגדל | C20: 69 | D20: אג"ח עד 10% מניות | E20: 0.001
A21: מגדל | C21: 74 | D21: אג"ח עד 25% מניות | E21: 0.001
A22: מגדל | C22: 13625 | D22: מחקה מדד s&p500 | E22: 0.001
A23: מגדל | C23: 14239 | D23: משולב סחיר | E23: 0.001
A24: מגדל | C24: 14240 | D24: עוקב מדדים - גמיש | E24: 0.0013
A27: מוצר | B27: קידוד קרן באוצר | C27: מס' קרן | D27: מסלול | E27: שיעור מגבלה 2023 | F27: שיעור הוצאות לניהול השקעות | G27: מזה: שיעור ההוצאות לניהול חיצוני | H27: שיעור הוצאות שאינן ניהול חיצוני (לפי 2022) | I27: שיעור ההוצאות הישירות הצפויות
A28: מגדל | B28: 8659 | C28: 381 | D28: אג"ח | E28: =VLOOKUP(D28,$D$2:$E$24,2,0) -> 0.001 | F28: 0.0004 | G28: 0.0003 | H28: =F28-G28 -> 0.0001 | I28: =MIN(E28+H28,0.25%) -> 0.0011
A29: מגדל | B29: 8659 | C29: 382 | D29: אג"ח | E29: 0.001 | F29: 0.0004 | G29: 0.0003 | H29: 0.0001 | I29: 0.0011
A30: מגדל | B30: 8659 | C30: 384 | D30: אג"ח | E30: 0.001 | F30: 0.0004 | G30: 0.0003 | H30: 0.0001 | I30: 0.0011
A31: מגדל | B31: 8659 | C31: 385 | D31: אג"ח | E31: 0.001 | F31: 0.0004 | G31: 0.0003 | H31: 0.0001 | I31: 0.0011
A32: מגדל | B32: 8659 | C32: 387 | D32: אג"ח | E32: 0.001 | F32: 0.0004 | G32: 0.0003 | H32: 0.0001 | I32: 0.0011
A33: מגדל | B33: 68 | C33: 121 | D33: אג"ח ממשלת ישראל | E33: 0.0002 | F33: 0.0003 | G33: 0 | H33: 0.0003 | I33: 0.0005
A34: מגדל | B34: 68 | C34: 131 | D34: אג"ח ממשלת ישראל | E34: 0.0002 | F34: 0.0003 | G34: 0 | H34: 0.0003 | I34: 0.0005
A35: מגדל | B35: 68 | C35: 191 | D35: אג"ח ממשלת ישראל | E35: 0.0002 | F35: 0.0003 | G35: 0 | H35: 0.0003 | I35: 0.0005
A36: מגדל | B36: 68 | C36: 231 | D36: אג"ח ממשלת ישראל | E36: 0.0002 | F36: 0.0003 | G36: 0 | H36: 0.0003 | I36: 0.0005
A37: מגדל | B37: 68 | C37: 281 | D37: אג"ח ממשלת ישראל | E37: 0.0002 | F37: 0.0003 | G37: 0 | H37: 0.0003 | I37: 0.0005
A38: מגדל | B38: 76 | C38: 291 | D38: אג"ח ממשלת ישראל | E38: 0.0002 | F38: 0.0003 | G38: 0 | H38: 0.0003 | I38: 0.0005
A39: מגדל | B39: 68 | C39: 521 | D39: אג"ח ממשלת ישראל | E39: 0.0002 | F39: 0.0003 | G39: 0 | H39: 0.0003 | I39: 0.0005
A40: מגדל | B40: 68 | C40: 531 | D40: אג"ח ממשלת ישראל | E40: 0.0002 | F40: 0.0003 | G40: 0 | H40: 0.0003 | I40: 0.0005
A41: מגדל | B41: 68 | C41: 591 | D41: אג"ח ממשלת ישראל | E41: 0.0002 | F41: 0.0003 | G41: 0 | H41: 0.0003 | I41: 0.0005
A42: מגדל | B42: 69 | C42: 113 | D42: אג"ח עד 10% מניות | E42: 0.001 | F42: 0.0006 | G42: 0.0003 | H42: 0.0003 | I42: 0.0013
A43: מגדל | B43: 70 | C43: 114 | D43: אג"ח עד 10% מניות | E43: 0.001 | F43: 0.0006 | G43: 0.0003 | H43: 0.0003 | I43: 0.0013
A44: מגדל | B44: 69 | C44: 123 | D44: אג"ח עד 10% מניות | E44: 0.001 | F44: 0.0006 | G44: 0.0003 | H44: 0.0003 | I44: 0.0013
A45: מגדל | B45: 70 | C45: 124 | D45: אג"ח עד 10% מניות | E45: 0.001 | F45: 0.0006 | G45: 0.0003 | H45: 0.0003 | I45: 0.0013
A46: מגדל | C46: 155 | D46: אג"ח עד 10% מניות | E46: 0.001 | F46: 0.0006 | G46: 0.0003 | H46: 0.0003 | I46: 0.0013
A47: מגדל | C47: 158 | D47: אג"ח עד 10% מניות | E47: 0.001 | F47: 0.0006 | G47: 0.0003 | H47: 0.0003 | I47: 0.0013
A48: מגדל | B48: 69 | C48: 193 | D48: אג"ח עד 10% מניות | E48: 0.001 | F48: 0.0006 | G48: 0.0003 | H48: 0.0003 | I48: 0.0013
A49: מגדל | B49: 70 | C49: 194 | D49: אג"ח עד 10% מניות | E49: 0.001 | F49: 0.0006 | G49: 0.0003 | H49: 0.0003 | I49: 0.0013
A50: מגדל | B50: 69 | C50: 205 | D50: אג"ח עד 10% מניות | E50: 0.001 | F50: 0.0006 | G50: 0.0003 | H50: 0.0003 | I50: 0.0013
A51: מגדל | B51: 69 | C51: 243 | D51: אג"ח עד 10% מניות | E51: 0.001 | F51: 0.0006 | G51: 0.0003 | H51: 0.0003 | I51: 0.0013
A52: מגדל | B52: 70 | C52: 244 | D52: אג"ח עד 10% מניות | E52: 0.001 | F52: 0.0006 | G52: 0.0003 | H52: 0.0003 | I52: 0.0013
A53: מגדל | B53: 69 | C53: 263 | D53: אג"ח עד 10% מניות | E53: 0.001 | F53: 0.0006 | G53: 0.0003 | H53: 0.0003 | I53: 0.0013
A54: מגדל | B54: 70 | C54: 264 | D54: אג"ח עד 10% מניות | E54: 0.001 | F54: 0.0006 | G54: 0.0003 | H54: 0.0003 | I54: 0.0013
A55: מגדל | B55: 69 | C55: 283 | D55: אג"ח עד 10% מניות | E55: 0.001 | F55: 0.0006 | G55: 0.0003 | H55: 0.0003 | I55: 0.0013
A56: מגדל | B56: 69 | C56: 284 | D56: אג"ח עד 10% מניות | E56: 0.001 | F56: 0.0006 | G56: 0.0003 | H56: 0.0003 | I56: 0.0013
A57: מגדל | B57: 69 | C57: 345 | D57: אג"ח עד 10% מניות | E57: 0.001 | F57: 0.0006 | G57: 0.0003 | H57: 0.0003 | I57: 0.0013
A58: מגדל | B58: 69 | C58: 405 | D58: אג"ח עד 10% מניות | E58: 0.001 | F58: 0.0006 | G58: 0.0003 | H58: 0.0003 | I58: 0.0013
A59: מגדל | B59: 69 | C59: 445 | D59: אג"ח עד 10% מניות | E59: 0.001 | F59: 0.0006 | G59: 0.0003 | H59: 0.0003 | I59: 0.0013
A60: מגדל | C60: 455 | D60: אג"ח עד 10% מניות | E60: =VLOOKUP(D60,$D$2:$E$24,2,0) -> 0.001 | F60: 0.0006 | G60: 0.0003 | H60: =F60-G60 -> 0.0003 | I60: =MIN(E60+H60,0.25%) -> 0.0013
A61: מגדל | B61: 69 | C61: 458 | D61: אג"ח עד 10% מניות | E61: 0.001 | F61: 0.0006 | G61: 0.0003 | H61: 0.0003 | I61: 0.0013
A62: מגדל | B62: 69 | C62: 513 | D62: אג"ח עד 10% מניות | E62: 0.001 | F62: 0.0006 | G62: 0.0003 | H62: 0.0003 | I62: 0.0013
A63: מגדל | B63: 70 | C63: 514 | D63: אג"ח עד 10% מניות | E63: 0.001 | F63: 0.0006 | G63: 0.0003 | H63: 0.0003 | I63: 0.0013
A64: מגדל | B64: 69 | C64: 523 | D64: אג"ח עד 10% מניות | E64: 0.001 | F64: 0.0006 | G64: 0.0003 | H64: 0.0003 | I64: 0.0013
A65: מגדל | B65: 70 | C65: 524 | D65: אג"ח עד 10% מניות | E65: 0.001 | F65: 0.0006 | G65: 0.0003 | H65: 0.0003 | I65: 0.0013
A66: מגדל | B66: 69 | C66: 593 | D66: אג"ח עד 10% מניות | E66: 0.001 | F66: 0.0006 | G66: 0.0003 | H66: 0.0003 | I66: 0.0013
A67: מגדל | B67: 70 | C67: 594 | D67: אג"ח עד 10% מניות | E67: 0.001 | F67: 0.0006 | G67: 0.0003 | H67: 0.0003 | I67: 0.0013
A68: מגדל | B68: 74 | C68: 116 | D68: אג"ח עד 25% מניות | E68: 0.001 | F68: 0.0007 | G68: 0.0005 | H68: 0.0002 | I68: 0.0012
A69: מגדל | B69: 74 | C69: 126 | D69: אג"ח עד 25% מניות | E69: 0.001 | F69: 0.0007 | G69: 0.0005 | H69: 0.0002 | I69: 0.0012
A70: מגדל | C70: 154 | D70: אג"ח עד 25% מניות | E70: 0.001 | F70: 0.0007 | G70: 0.0005 | H70: 0.0002 | I70: 0.0012
A71: מגדל | C71: 157 | D71: אג"ח עד 25% מניות | E71: 0.001 | F71: 0.0007 | G71: 0.0005 | H71: 0.0002 | I71: 0.0012
A72: מגדל | B72: 74 | C72: 196 | D72: אג"ח עד 25% מניות | E72: 0.001 | F72: 0.0007 | G72: 0.0005 | H72: 0.0002 | I72: 0.0012
A73: מגדל | B73: 74 | C73: 204 | D73: אג"ח עד 25% מניות | E73: 0.001 | F73: 0.0007 | G73: 0.0005 | H73: 0.0002 | I73: 0.0012
A74: מגדל | B74: 74 | C74: 246 | D74: אג"ח עד 25% מניות | E74: 0.001 | F74: 0.0007 | G74: 0.0005 | H74: 0.0002 | I74: 0.0012
A75: מגדל | B75: 74 | C75: 266 | D75: אג"ח עד 25% מניות | E75: 0.001 | F75: 0.0007 | G75: 0.0005 | H75: 0.0002 | I75: 0.0012
A76: מגדל | B76: 70 | C76: 286 | D76: אג"ח עד 25% מניות | E76: 0.001 | F76: 0.0007 | G76: 0.0005 | H76: 0.0002 | I76: 0.0012
A77: מגדל | B77: 76 | C77: 344 | D77: אג"ח עד 25% מניות | E77: 0.001 | F77: 0.0007 | G77: 0.0005 | H77: 0.0002 | I77: 0.0012
A78: מגדל | B78: 74 | C78: 404 | D78: אג"ח עד 25% מניות | E78: 0.001 | F78: 0.0007 | G78: 0.0005 | H78: 0.0002 | I78: 0.0012
A79: מגדל | B79: 74 | C79: 444 | D79: אג"ח עד 25% מניות | E79: 0.001 | F79: 0.0007 | G79: 0.0005 | H79: 0.0002 | I79: 0.0012
A80: מגדל | B80: 74 | C80: 454 | D80: אג"ח עד 25% מניות | E80: 0.001 | F80: 0.0007 | G80: 0.0005 | H80: 0.0002 | I80: 0.0012
A81: מגדל | B81: 74 | C81: 457 | D81: אג"ח עד 25% מניות | E81: 0.001 | F81: 0.0007 | G81: 0.0005 | H81: 0.0002 | I81: 0.0012
A82: מגדל | B82: 74 | C82: 516 | D82: אג"ח עד 25% מניות | E82: 0.001 | F82: 0.0007 | G82: 0.0005 | H82: 0.0002 | I82: 0.0012
A83: מגדל | B83: 74 | C83: 526 | D83: אג"ח עד 25% מניות | E83: 0.001 | F83: 0.0007 | G83: 0.0005 | H83: 0.0002 | I83: 0.0012
A84: מגדל | B84: 74 | C84: 557 | D84: אג"ח עד 25% מניות | E84: 0.001 | F84: 0.0007 | G84: 0.0005 | H84: 0.0002 | I84: 0.0012
A85: מגדל | B85: 74 | C85: 596 | D85: אג"ח עד 25% מניות | E85: 0.001 | F85: 0.0007 | G85: 0.0005 | H85: 0.0002 | I85: 0.0012
A86: מגדל | B86: 185 | C86: 270 | D86: הלכה | E86: 0.0013 | F86: 0.0009 | G86: 0.0007 | H86: 0.0002 | I86: 0.0015
A87: מגדל | B87: 185 | C87: 271 | D87: הלכה | E87: 0.0013 | F87: 0.0009 | G87: 0.0007 | H87: 0.0002 | I87: 0.0015
A88: מגדל | B88: 185 | C88: 272 | D88: הלכה | E88: 0.0013 | F88: 0.0009 | G88: 0.0007 | H88: 0.0002 | I88: 0.0015
A89: מגדל | B89: 185 | C89: 273 | D89: הלכה | E89: 0.0013 | F89: 0.0009 | G89: 0.0007 | H89: 0.0002 | I89: 0.0015
A90: מגדל | B90: 185 | C90: 275 | D90: הלכה | E90: 0.0013 | F90: 0.0009 | G90: 0.0007 | H90: 0.0002 | I90: 0.0015
A91: מגדל | B91: 185 | C91: 276 | D91: הלכה | E91: 0.0013 | F91: 0.0009 | G91: 0.0007 | H91: 0.0002 | I91: 0.0015
A92: מגדל | B92: 8660 | C92: 391 | D92: חו"ל | E92: =VLOOKUP(D92,$D$2:$E$24,2,0) -> 0.0025 | F92: 0.0019 | G92: 0.0015 | H92: =F92-G92 -> 0.0004 | I92: =MIN(E92+H92,0.25%) -> 0.0025
A93: מגדל | B93: 8660 | C93: 392 | D93: חו"ל | E93: 0.0025 | F93: 0.0019 | G93: 0.0015 | H93: 0.0004 | I93: 0.0025
A94: מגדל | B94: 8660 | C94: 394 | D94: חו"ל | E94: 0.0025 | F94: 0.0019 | G94: 0.0015 | H94: 0.0004 | I94: 0.0025
A95: מגדל | B95: 8660 | C95: 395 | D95: חו"ל | E95: 0.0025 | F95: 0.0019 | G95: 0.0015 | H95: 0.0004 | I95: 0.0025
A96: מגדל | B96: 8660 | C96: 397 | D96: חו"ל | E96: 0.0025 | F96: 0.0019 | G96: 0.0015 | H96: 0.0004 | I96: 0.0025
A97: מגדל | B97: 13 | C97: 72 | D97: כללי | F97: 0.0019 | G97: 0.0017 | H97: 0.0002
A98: מגדל | B98: 13 | C98: 73 | D98: כללי | F98: 0.0019 | G98: 0.0017 | H98: 0.0002
A99: מגדל | B99: 13 | C99: 192 | D99: כללי | F99: 0.0019 | G99: 0.0017 | H99: 0.0002
A100: מגדל | B100: 13 | C100: 200 | D100: כללי | F100: 0.0019 | G100: 0.0017 | H100: 0.0002
A101: מגדל | B101: 13 | C101: 222 | D101: כללי | F101: 0.0019 | G101: 0.0017 | H101: 0.0002
A102: מגדל | B102: 13 | C102: 230 | D102: כללי | F102: 0.0019 | G102: 0.0017 | H102: 0.0002
A103: מגדל | B103: 13 | C103: 251 | D103: כללי | F103: 0.0019 | G103: 0.0017 | H103: 0.0002
A104: מגדל | B104: 68 | C104: 300 | D104: כללי | F104: 0.0019 | G104: 0.0017 | H104: 0.0002
A105: מגדל | B105: 13 | C105: 572 | D105: כללי | F105: 0.0019 | G105: 0.0017 | H105: 0.0002
A106: מגדל | B106: 13 | C106: 573 | D106: כללי | F106: 0.0019 | G106: 0.0017 | H106: 0.0002
A107: מגדל | B107: 13 | C107: 592 | D107: כללי | F107: 0.0019 | G107: 0.0017 | H107: 0.0002
A108: מגדל | B108: 13 | C108: 600 | D108: כללי | F108: 0.0019 | G108: 0.0017 | H108: 0.0002
A109: מגדל | B109: 75 | C109: 117 | D109: כללי 3 עד 65% מניות | E109: 0.0015 | F109: 0.0009 | G109: 0.0006 | H109: 0.0003 | I109: 0.0018
A110: מגדל | B110: 75 | C110: 127 | D110: כללי 3 עד 65% מניות | E110: 0.0015 | F110: 0.0009 | G110: 0.0006 | H110: 0.0003 | I110: 0.0018
A111: מגדל | B111: 75 | C111: 197 | D111: כללי 3 עד 65% מניות | E111: 0.0015 | F111: 0.0009 | G111: 0.0006 | H111: 0.0003 | I111: 0.0018
A112: מגדל | B112: 75 | C112: 247 | D112: כללי 3 עד 65% מניות | E112: 0.0015 | F112: 0.0009 | G112: 0.0006 | H112: 0.0003 | I112: 0.0018
A113: מגדל | B113: 75 | C113: 267 | D113: כללי 3 עד 65% מניות | E113: 0.0015 | F113: 0.0009 | G113: 0.0006 | H113: 0.0003 | I113: 0.0018
A114: מגדל | B114: 74 | C114: 287 | D114: כללי 3 עד 65% מניות | E114: 0.0015 | F114: 0.0009 | G114: 0.0006 | H114: 0.0003 | I114: 0.0018
A115: מגדל | B115: 75 | C115: 517 | D115: כללי 3 עד 65% מניות | E115: 0.0015 | F115: 0.0009 | G115: 0.0006 | H115: 0.0003 | I115: 0.0018
A116: מגדל | B116: 75 | C116: 527 | D116: כללי 3 עד 65% מניות | E116: 0.0015 | F116: 0.0009 | G116: 0.0006 | H116: 0.0003 | I116: 0.0018
A117: מגדל | B117: 75 | C117: 597 | D117: כללי 3 עד 65% מניות | E117: 0.0015 | F117: 0.0009 | G117: 0.0006 | H117: 0.0003 | I117: 0.0018
A118: מגדל | B118: 9599 | C118: 924 | D118: לבני 50 ומטה לא מנוהל | E118: 0.0025 | F118: 0.0017 | G118: 0.0016 | H118: 0.0001 | I118: 0.0025
A119: מגדל | B119: 9599 | C119: 944 | D119: לבני 50 ומטה לא מנוהל | E119: 0.0025 | F119: 0.0017 | G119: 0.0016 | H119: 0.0001 | I119: 0.0025
A120: מגדל | B120: 9599 | C120: 954 | D120: לבני 50 ומטה לא מנוהל | E120: 0.0025 | F120: 0.0017 | G120: 0.0016 | H120: 0.0001 | I120: 0.0025
A121: מגדל | B121: 9599 | C121: 974 | D121: לבני 50 ומטה לא מנוהל | E121: 0.0025 | F121: 0.0017 | G121: 0.0016 | H121: 0.0001 | I121: 0.0025
A122: מגדל | B122: 9599 | C122: 911 | D122: לבני 50 ומטה מנוהל | E122: 0.0025 | F122: 0.0017 | G122: 0.0016 | H122: 0.0001 | I122: 0.0025
A123: מגדל | B123: 9599 | C123: 914 | D123: לבני 50 ומטה מנוהל | E123: 0.0025 | F123: 0.0017 | G123: 0.0016 | H123: 0.0001 | I123: 0.0025
A124: מגדל | B124: 9599 | C124: 921 | D124: לבני 50 ומטה מנוהל | E124: =VLOOKUP(D124,$D$2:$E$24,2,0) -> 0.0025 | F124: 0.0017 | G124: 0.0016 | H124: =F124-G124 -> 0.0001 | I124: =MIN(E124+H124,0.25%) -> 0.0025
A125: מגדל | B125: 9599 | C125: 941 | D125: לבני 50 ומטה מנוהל | E125: 0.0025 | F125: 0.0017 | G125: 0.0016 | H125: 0.0001 | I125: 0.0025
A126: מגדל | B126: 9599 | C126: 951 | D126: לבני 50 ומטה מנוהל | E126: 0.0025 | F126: 0.0017 | G126: 0.0016 | H126: 0.0001 | I126: 0.0025
A127: מגדל | B127: 9599 | C127: 971 | D127: לבני 50 ומטה מנוהל | E127: 0.0025 | F127: 0.0017 | G127: 0.0016 | H127: 0.0001 | I127: 0.0025
A128: מגדל | B128: 9604 | C128: 915 | D128: לבני 50 עד 60 לא מנוהל | E128: 0.0025 | F128: 0.0016 | G128: 0.0016 | H128: 0 | I128: 0.0025
A129: מגדל | B129: 9604 | C129: 925 | D129: לבני 50 עד 60 לא מנוהל | E129: 0.0025 | F129: 0.0016 | G129: 0.0016 | H129: 0 | I129: 0.0025
A130: מגדל | B130: 9604 | C130: 942 | D130: לבני 50 עד 60 לא מנוהל | E130: 0.0025 | F130: 0.0016 | G130: 0.0016 | H130: 0 | I130: 0.0025
A131: מגדל | B131: 9604 | C131: 945 | D131: לבני 50 עד 60 לא מנוהל | E131: 0.0025 | F131: 0.0016 | G131: 0.0016 | H131: 0 | I131: 0.0025
A132: מגדל | B132: 9604 | C132: 955 | D132: לבני 50 עד 60 לא מנוהל | E132: 0.0025 | F132: 0.0016 | G132: 0.0016 | H132: 0 | I132: 0.0025
A133: מגדל | B133: 9604 | C133: 975 | D133: לבני 50 עד 60 לא מנוהל | E133: 0.0025 | F133: 0.0016 | G133: 0.0016 | H133: 0 | I133: 0.0025
A134: מגדל | B134: 9604 | C134: 912 | D134: לבני 50 עד 60 מנוהל | E134: 0.0025 | F134: 0.0016 | G134: 0.0016 | H134: 0 | I134: 0.0025
A135: מגדל | B135: 9604 | C135: 922 | D135: לבני 50 עד 60 מנוהל | E135: 0.0025 | F135: 0.0016 | G135: 0.0016 | H135: 0 | I135: 0.0025
A136: מגדל | B136: 9604 | C136: 952 | D136: לבני 50 עד 60 מנוהל | E136: 0.0025 | F136: 0.0016 | G136: 0.0016 | H136: 0 | I136: 0.0025
A137: מגדל | B137: 9604 | C137: 972 | D137: לבני 50 עד 60 מנוהל | E137: 0.0025 | F137: 0.0016 | G137: 0.0016 | H137: 0 | I137: 0.0025
A138: מגדל | B138: 9729 | C138: 916 | D138: לבני 60 ומעלה לא מנוהל | E138: 0.0025 | F138: 0.0013 | G138: 0.0012 | H138: 0.0001 | I138: 0.0025
A139: מגדל | B139: 9729 | C139: 926 | D139: לבני 60 ומעלה לא מנוהל | E139: 0.0025 | F139: 0.0013 | G139: 0.0012 | H139: 0.0001 | I139: 0.0025
A140: מגדל | B140: 9729 | C140: 943 | D140: לבני 60 ומעלה לא מנוהל | E140: 0.0025 | F140: 0.0013 | G140: 0.0012 | H140: 0.0001 | I140: 0.0025
A141: מגדל | B141: 9729 | C141: 946 | D141: לבני 60 ומעלה לא מנוהל | E141: 0.0025 | F141: 0.0013 | G141: 0.0012 | H141: 0.0001 | I141: 0.0025
A142: מגדל | B142: 9729 | C142: 956 | D142: לבני 60 ומעלה לא מנוהל | E142: 0.0025 | F142: 0.0013 | G142: 0.0012 | H142: 0.0001 | I142: 0.0025
A143: מגדל | B143: 9729 | C143: 976 | D143: לבני 60 ומעלה לא מנוהל | E143: 0.0025 | F143: 0.0013 | G143: 0.0012 | H143: 0.0001 | I143: 0.0025
A144: מגדל | B144: 9729 | C144: 913 | D144: לבני 60 ומעלה מנוהל | E144: 0.0025 | F144: 0.0013 | G144: 0.0012 | H144: 0.0001 | I144: 0.0025
A145: מגדל | B145: 9729 | C145: 923 | D145: לבני 60 ומעלה מנוהל | E145: 0.0025 | F145: 0.0013 | G145: 0.0012 | H145: 0.0001 | I145: 0.0025
A146: מגדל | B146: 9729 | C146: 953 | D146: לבני 60 ומעלה מנוהל | E146: 0.0025 | F146: 0.0013 | G146: 0.0012 | H146: 0.0001 | I146: 0.0025
A147: מגדל | B147: 9729 | C147: 973 | D147: לבני 60 ומעלה מנוהל | E147: 0.0025 | F147: 0.0013 | G147: 0.0012 | H147: 0.0001 | I147: 0.0025
A148: מגדל | B148: 76 | C148: 118 | D148: מניות | E148: 0.0012 | F148: 0.0009 | G148: 0.0007 | H148: 0.0002 | I148: 0.0014
A149: מגדל | B149: 76 | C149: 128 | D149: מניות | E149: 0.0012 | F149: 0.0009 | G149: 0.0007 | H149: 0.0002 | I149: 0.0014
A150: מגדל | C150: 153 | D150: מניות | E150: 0.0012 | F150: 0.0009 | G150: 0.0007 | H150: 0.0002 | I150: 0.0014
A151: מגדל | C151: 156 | D151: מניות | E151: 0.0012 | F151: 0.0009 | G151: 0.0007 | H151: 0.0002 | I151: 0.0014
A152: מגדל | B152: 76 | C152: 198 | D152: מניות | E152: 0.0012 | F152: 0.0009 | G152: 0.0007 | H152: 0.0002 | I152: 0.0014
A153: מגדל | B153: 76 | C153: 203 | D153: מניות | E153: 0.0012 | F153: 0.0009 | G153: 0.0007 | H153: 0.0002 | I153: 0.0014
A154: מגדל | B154: 76 | C154: 248 | D154: מניות | E154: 0.0012 | F154: 0.0009 | G154: 0.0007 | H154: 0.0002 | I154: 0.0014
A155: מגדל | B155: 76 | C155: 268 | D155: מניות | E155: 0.0012 | F155: 0.0009 | G155: 0.0007 | H155: 0.0002 | I155: 0.0014
A156: מגדל | B156: 75 | C156: 288 | D156: מניות | E156: =VLOOKUP(D156,$D$2:$E$24,2,0) -> 0.0012 | F156: 0.0009 | G156: 0.0007 | H156: =F156-G156 -> 0.0002 | I156: =MIN(E156+H156,0.25%) -> 0.0014
A157: מגדל | B157: 13 | C157: 343 | D157: מניות | E157: 0.0012 | F157: 0.0009 | G157: 0.0007 | H157: 0.0002 | I157: 0.0014
A158: מגדל | B158: 76 | C158: 403 | D158: מניות | E158: 0.0012 | F158: 0.0009 | G158: 0.0007 | H158: 0.0002 | I158: 0.0014
A159: מגדל | B159: 76 | C159: 443 | D159: מניות | E159: 0.0012 | F159: 0.0009 | G159: 0.0007 | H159: 0.0002 | I159: 0.0014
A160: מגדל | B160: 76 | C160: 453 | D160: מניות | E160: 0.0012 | F160: 0.0009 | G160: 0.0007 | H160: 0.0002 | I160: 0.0014
A161: מגדל | B161: 76 | C161: 456 | D161: מניות | E161: 0.0012 | F161: 0.0009 | G161: 0.0007 | H161: 0.0002 | I161: 0.0014
A162: מגדל | B162: 76 | C162: 518 | D162: מניות | E162: 0.0012 | F162: 0.0009 | G162: 0.0007 | H162: 0.0002 | I162: 0.0014
A163: מגדל | B163: 76 | C163: 528 | D163: מניות | E163: 0.0012 | F163: 0.0009 | G163: 0.0007 | H163: 0.0002 | I163: 0.0014
A164: מגדל | B164: 76 | C164: 553 | D164: מניות | E164: 0.0012 | F164: 0.0009 | G164: 0.0007 | H164: 0.0002 | I164: 0.0014
A165: מגדל | B165: 76 | C165: 556 | D165: מניות | E165: 0.0012 | F165: 0.0009 | G165: 0.0007 | H165: 0.0002 | I165: 0.0014
A166: מגדל | B166: 76 | C166: 598 | D166: מניות | E166: 0.0012 | F166: 0.0009 | G166: 0.0007 | H166: 0.0002 | I166: 0.0014
A167: מגדל | B167: 76 | C167: 603 | D167: מניות | E167: 0.0012 | F167: 0.0009 | G167: 0.0007 | H167: 0.0002 | I167: 0.0014
A168: מגדל | C168: 371 | D168: קרן תום תקופה | F168: 0.002 | G168: 0.0018 | H168: 0.0002
A169: מגדל | B169: 17013 | C169: 781 | D169: קרן תום תקופה - יומי | F169: 0.0019 | G169: 0.0017 | H169: 0.0002
A170: מגדל | B170: 1955 | C170: 361 | D170: שקלי טווח קצר | E170: 0.0002 | F170: 0.0002 | G170: 0 | H170: 0.0002 | I170: 0.0004
A171: מגדל | B171: 1955 | C171: 362 | D171: שקלי טווח קצר | E171: 0.0002 | F171: 0.0002 | G171: 0 | H171: 0.0002 | I171: 0.0004
A172: מגדל | B172: 1955 | C172: 364 | D172: שקלי טווח קצר | E172: 0.0002 | F172: 0.0002 | G172: 0 | H172: 0.0002 | I172: 0.0004
A173: מגדל | B173: 1955 | C173: 365 | D173: שקלי טווח קצר | E173: 0.0002 | F173: 0.0002 | G173: 0 | H173: 0.0002 | I173: 0.0004
A174: מגדל | B174: 1955 | C174: 367 | D174: שקלי טווח קצר | E174: 0.0002 | F174: 0.0002 | G174: 0 | H174: 0.0002 | I174: 0.0004

Sheet קובץ עזר (hidden)
B1: תגמולים | C1: פיצויים | D1: סה"כ
B2: =חישוב!$B$34 -> 0.145 | C2: =חישוב!$B$36 -> 0.083 | D2: =SUM(B2:C2) -> 0.228 | E2: =IF(B2>F2,"שיעור תגמולים גבוה מהמותר",0) -> 0 | F2: 0.145 | H2: מקסימום 14.5% בתמולים
B3: =חישוב!$B$34 -> 0.145 | C3: =חישוב!$B$36 -> 0.083 | D3: =SUM(B3:C3) -> 0.228 | E3: =IF(C3>F3,"שיעור פיצויים גבוה מהמותר",0) -> 0 | F3: 0.0834 | H3: מקסימום 8.34% פיצויים
B4: =חישוב!$B$34 -> 0.145 | C4: =חישוב!$B$36 -> 0.083 | D4: =SUM(B4:C4) -> 0.228 | E4: =IF(C4>F4,"שיעור הפרשות כולל גבוה מהמותר",0) -> 0 | F4: 0.2284 | H4: מקסימום כולל 22.84%
B5: =חישוב!$B$34 -> 0.145 | C5: =חישוב!$B$36 -> 0.083 | D5: =SUM(B5:C5) -> 0.228 | E5: =IF(AND(C5>0,B5<F5),"לא ניתן לשלם פיצויים ללא תגמולים מינימליים",0) -> 0 | F5: 0.1 | H5: אם יש פיצויים חייבים מינימום 10% תגמולים
E6: =COUNT(E2:E5) -> 4

Sheet מכתב למבוטח (hidden)

Sheet נתוני השקעות מנשה דבי (hidden)
A1: קוד חברה | B1: תאריך נכונות דיווח | C1: מס' קרן | D1: שם הקרן | E1: חדש / ישן | F1: קרן באוצר | G1: תשואה ברוטו מתחילת שנה | H1: תשואה ברוטו ב- 5 שנים | I1: שיעור הוצאות ישירות | J1: שיעור הוצאות ניהול חיצוני | K1: שיעור הוצאות לניהול השקעות | L1: מזה: שיעור ההוצאות לניהול חיצוני
A2: 1 | B2: 31.12.21 | C2: 14 | D2: קרן ח' | E2: ישן | F2: 17010 | G2: 0.1364400746 | H2: 0.4203443933 | I2: 0.0010802896 | J2: 0.0009334675199 | K2: =VLOOKUP(C2,ביטוח!$C$27:$H$174,4,0) ->  | L2: =VLOOKUP(C2,ביטוח!$C$27:$H$174,5,0) -> 
A3: 1 | B3: 31.12.21 | C3: 20 | D3: קרן ח' | E3: ישן | F3: 17010 | G3: 0.1364400746 | H3: 0.4203443933 | I3: 0.0010802896 | J3: 0.0009334675199 | K3: =VLOOKUP(C3,ביטוח!$C$27:$H$174,4,0) ->  | L3: =VLOOKUP(C3,ביטוח!$C$27:$H$174,5,0) -> 
A4: 1 | B4: 31.12.21 | C4: 60 | D4: קרן ח' | E4: ישן | F4: 17010 | G4: 0.1364400746 | H4: 0.4203443933 | I4: 0.0010802896 | J4: 0.0009334675199 | K4: =VLOOKUP(C4,ביטוח!$C$27:$H$174,4,0) ->  | L4: =VLOOKUP(C4,ביטוח!$C$27:$H$174,5,0) -> 
A5: 1 | B5: 31.12.21 | C5: 61 | D5: קרן ח' | E5: ישן | F5: 17010 | G5: 0.1364400746 | H5: 0.4203443933 | I5: 0.0010802896 | J5: 0.0009334675199 | K5: =VLOOKUP(C5,ביטוח!$C$27:$H$174,4,0) ->  | L5: =VLOOKUP(C5,ביטוח!$C$27:$H$174,5,0) -> 
A6: 1 | B6: 31.12.21 | C6: 21 | D6: קרן ט' | E6: ישן | F6: 17011 | G6: 0.1346184111 | H6: 0.4142496275 | I6: 0.001246458038 | J6: 0.001120184238 | K6: =VLOOKUP(C6,ביטוח!$C$27:$H$174,4,0) ->  | L6: =VLOOKUP(C6,ביטוח!$C$27:$H$174,5,0) -> 
A7: 1 | B7: 31.12.21 | C7: 22 | D7: קרן ט' | E7: ישן | F7: 17011 | G7: 0.1346184111 | H7: 0.4142496275 | I7: 0.001246458038 | J7: 0.001120184238 | K7: =VLOOKUP(C7,ביטוח!$C$27:$H$174,4,0) ->  | L7: =VLOOKUP(C7,ביטוח!$C$27:$H$174,5,0) -> 
A8: 1 | B8: 31.12.21 | C8: 621 | D8: קרן ט' | E8: ישן | F8: 17011 | G8: 0.1346184111 | H8: 0.4142496275 | I8: 0.001246458038 | J8: 0.001120184238 | K8: =VLOOKUP(C8,ביטוח!$C$27:$H$174,4,0) ->  | L8: =VLOOKUP(C8,ביטוח!$C$27:$H$174,5,0) -> 
A9: 1 | B9: 31.12.21 | C9: 522 | D9: קרן ט' | E9: ישן | F9: 17011 | G9: 0.1346184111 | H9: 0.4142496275 | I9: 0.001246458038 | J9: 0.001120184238 | K9: =VLOOKUP(C9,ביטוח!$C$27:$H$174,4,0) ->  | L9: =VLOOKUP(C9,ביטוח!$C$27:$H$174,5,0) -> 
A10: 1 | B10: 31.12.21 | C10: 41 | D10: קרן ט' | E10: ישן | F10: 17011 | G10: 0.1346184111 | H10: 0.4142496275 | I10: 0.001246458038 | J10: 0.001120184238 | K10: =VLOOKUP(C10,ביטוח!$C$27:$H$174,4,0) ->  | L10: =VLOOKUP(C10,ביטוח!$C$27:$H$174,5,0) -> 
A11: 1 | B11: 31.12.21 | C11: 42 | D11: קרן ט' | E11: ישן | F11: 17011 | G11: 0.1346184111 | H11: 0.4142496275 | I11: 0.001246458038 | J11: 0.001120184238 | K11: =VLOOKUP(C11,ביטוח!$C$27:$H$174,4,0) ->  | L11: =VLOOKUP(C11,ביטוח!$C$27:$H$174,5,0) -> 
A12: 1 | B12: 31.12.21 | C12: 62 | D12: קרן ט' | E12: ישן | F12: 17011 | G12: 0.1346184111 | H12: 0.4142496275 | I12: 0.001246458038 | J12: 0.001120184238 | K12: =VLOOKUP(C12,ביטוח!$C$27:$H$174,4,0) ->  | L12: =VLOOKUP(C12,ביטוח!$C$27:$H$174,5,0) -> 
A13: 1 | B13: 31.12.21 | C13: 63 | D13: קרן ט' | E13: ישן | F13: 17011 | G13: 0.1346184111 | H13: 0.4142496275 | I13: 0.001246458038 | J13: 0.001120184238 | K13: =VLOOKUP(C13,ביטוח!$C$27:$H$174,4,0) ->  | L13: =VLOOKUP(C13,ביטוח!$C$27:$H$174,5,0) -> 
A14: 1 | B14: 31.12.21 | C14: 562 | D14: קרן ט' | E14: ישן | F14: 17011 | G14: 0.1346184111 | H14: 0.4142496275 | I14: 0.001246458038 | J14: 0.001120184238 | K14: =VLOOKUP(C14,ביטוח!$C$27:$H$174,4,0) ->  | L14: =VLOOKUP(C14,ביטוח!$C$27:$H$174,5,0) -> 
A15: 1 | B15: 31.12.21 | C15: 563 | D15: קרן ט' | E15: ישן | F15: 17011 | G15: 0.1346184111 | H15: 0.4142496275 | I15: 0.001246458038 | J15: 0.001120184238 | K15: =VLOOKUP(C15,ביטוח!$C$27:$H$174,4,0) ->  | L15: =VLOOKUP(C15,ביטוח!$C$27:$H$174,5,0) -> 
A16: 1 | B16: 31.12.21 | C16: 23 | D16: קרן ט' הסנה | E16: ישן | F16: 17011 | G16: 0.1549038703 | H16: 0.4696313619 | I16: 0.001246458038 | J16: 0.001120184238 | K16: =VLOOKUP(C16,ביטוח!$C$27:$H$174,4,0) ->  | L16: =VLOOKUP(C16,ביטוח!$C$27:$H$174,5,0) -> 
A17: 1 | B17: 31.12.21 | C17: 27 | D17: קרן ט' הסנה | E17: ישן | F17: 17011 | G17: 0.1549038703 | H17: 0.4696313619 | I17: 0.001246458038 | J17: 0.001120184238 | K17: =VLOOKUP(C17,ביטוח!$C$27:$H$174,4,0) ->  | L17: =VLOOKUP(C17,ביטוח!$C$27:$H$174,5,0) -> 
A18: 1 | B18: 31.12.21 | C18: 66 | D18: קרן ט' הסנה | E18: ישן | F18: 17011 | G18: 0.1549038703 | H18: 0.4696313619 | I18: 0.001246458038 | J18: 0.001120184238 | K18: =VLOOKUP(C18,ביטוח!$C$27:$H$174,4,0) ->  | L18: =VLOOKUP(C18,ביטוח!$C$27:$H$174,5,0) -> 
A19: 1 | B19: 31.12.21 | C19: 67 | D19: קרן ט' הסנה | E19: ישן | F19: 17011 | G19: 0.1549038703 | H19: 0.4696313619 | I19: 0.001246458038 | J19: 0.001120184238 | K19: =VLOOKUP(C19,ביטוח!$C$27:$H$174,4,0) ->  | L19: =VLOOKUP(C19,ביטוח!$C$27:$H$174,5,0) -> 
A20: 1 | B20: 31.12.21 | C20: 24 | D20: קרן י' הישנה | E20: ישן | F20: 17012 | G20: 0.1504392013 | H20: 0.4800978986 | I20: 0.001962296506 | J20: 0.001756856447 | K20: =VLOOKUP(C20,ביטוח!$C$27:$H$174,4,0) ->  | L20: =VLOOKUP(C20,ביטוח!$C$27:$H$174,5,0) -> 
A21: 1 | B21: 31.12.21 | C21: 25 | D21: קרן י' הישנה | E21: ישן | F21: 17012 | G21: 0.1504392013 | H21: 0.4800978986 | I21: 0.001962296506 | J21: 0.001756856447 | K21: =VLOOKUP(C21,ביטוח!$C$27:$H$174,4,0) ->  | L21: =VLOOKUP(C21,ביטוח!$C$27:$H$174,5,0) -> 
A22: 1 | B22: 31.12.21 | C22: 71 | D22: קרן י' הישנה | E22: ישן | F22: 17012 | G22: 0.1504392013 | H22: 0.4800978986 | I22: 0.001962296506 | J22: 0.001756856447 | K22: =VLOOKUP(C22,ביטוח!$C$27:$H$174,4,0) ->  | L22: =VLOOKUP(C22,ביטוח!$C$27:$H$174,5,0) -> 
A23: 1 | B23: 31.12.21 | C23: 95 | D23: קרן י' הישנה | E23: ישן | F23: 17012 | G23: 0.1504392013 | H23: 0.4800978986 | I23: 0.001962296506 | J23: 0.001756856447 | K23: =VLOOKUP(C23,ביטוח!$C$27:$H$174,4,0) ->  | L23: =VLOOKUP(C23,ביטוח!$C$27:$H$174,5,0) -> 
A24: 1 | B24: 31.12.21 | C24: 595 | D24: קרן י' הישנה | E24: ישן | F24: 17012 | G24: 0.1504392013 | H24: 0.4800978986 | I24: 0.001962296506 | J24: 0.001756856447 | K24: =VLOOKUP(C24,ביטוח!$C$27:$H$174,4,0) ->  | L24: =VLOOKUP(C24,ביטוח!$C$27:$H$174,5,0) -> 
A25: 1 | B25: 31.12.21 | C25: 624 | D25: קרן י' הישנה | E25: ישן | F25: 17012 | G25: 0.1504392013 | H25: 0.4800978986 | I25: 0.001962296506 | J25: 0.001756856447 | K25: =VLOOKUP(C25,ביטוח!$C$27:$H$174,4,0) ->  | L25: =VLOOKUP(C25,ביטוח!$C$27:$H$174,5,0) -> 
A26: 1 | B26: 31.12.21 | C26: 625 | D26: קרן י' הישנה | E26: ישן | F26: 17012 | G26: 0.1504392013 | H26: 0.4800978986 | I26: 0.001962296506 | J26: 0.001756856447 | K26: =VLOOKUP(C26,ביטוח!$C$27:$H$174,4,0) ->  | L26: =VLOOKUP(C26,ביטוח!$C$27:$H$174,5,0) -> 
A27: 1 | B27: 31.12.21 | C27: 43 | D27: קרן י' הישנה | E27: ישן | F27: 17012 | G27: 0.1504392013 | H27: 0.4800978986 | I27: 0.001962296506 | J27: 0.001756856447 | K27: =VLOOKUP(C27,ביטוח!$C$27:$H$174,4,0) ->  | L27: =VLOOKUP(C27,ביטוח!$C$27:$H$174,5,0) -> 
A28: 1 | B28: 31.12.21 | C28: 64 | D28: קרן י' הישנה | E28: ישן | F28: 17012 | G28: 0.1504392013 | H28: 0.4800978986 | I28: 0.001962296506 | J28: 0.001756856447 | K28: =VLOOKUP(C28,ביטוח!$C$27:$H$174,4,0) ->  | L28: =VLOOKUP(C28,ביטוח!$C$27:$H$174,5,0) -> 
A29: 1 | B29: 31.12.21 | C29: 65 | D29: קרן י' הישנה | E29: ישן | F29: 17012 | G29: 0.1504392013 | H29: 0.4800978986 | I29: 0.001962296506 | J29: 0.001756856447 | K29: =VLOOKUP(C29,ביטוח!$C$27:$H$174,4,0) ->  | L29: =VLOOKUP(C29,ביטוח!$C$27:$H$174,5,0) -> 
A30: 1 | B30: 31.12.21 | C30: 70 | D30: קרן י' הישנה | E30: ישן | F30: 17012 | G30: 0.1504392013 | H30: 0.4800978986 | I30: 0.001962296506 | J30: 0.001756856447 | K30: =VLOOKUP(C30,ביטוח!$C$27:$H$174,4,0) ->  | L30: =VLOOKUP(C30,ביטוח!$C$27:$H$174,5,0) -> 
A31: 1 | B31: 31.12.21 | C31: 90 | D31: קרן י' הישנה | E31: ישן | F31: 17012 | G31: 0.1504392013 | H31: 0.4800978986 | I31: 0.001962296506 | J31: 0.001756856447 | K31: =VLOOKUP(C31,ביטוח!$C$27:$H$174,4,0) ->  | L31: =VLOOKUP(C31,ביטוח!$C$27:$H$174,5,0) -> 
A32: 1 | B32: 31.12.21 | C32: 76 | D32: קרן י' הישנה | E32: ישן | F32: 17012 | G32: 0.1504392013 | H32: 0.4800978986 | I32: 0.001962296506 | J32: 0.001756856447 | K32: =VLOOKUP(C32,ביטוח!$C$27:$H$174,4,0) ->  | L32: =VLOOKUP(C32,ביטוח!$C$27:$H$174,5,0) -> 
A33: 1 | B33: 31.12.21 | C33: 96 | D33: קרן י' הישנה | E33: ישן | F33: 17012 | G33: 0.1504392013 | H33: 0.4800978986 | I33: 0.001962296506 | J33: 0.001756856447 | K33: =VLOOKUP(C33,ביטוח!$C$27:$H$174,4,0) ->  | L33: =VLOOKUP(C33,ביטוח!$C$27:$H$174,5,0) -> 
A34: 1 | B34: 31.12.21 | C34: 97 | D34: קרן י' הישנה | E34: ישן | F34: 17012 | G34: 0.1504392013 | H34: 0.4800978986 | I34: 0.001962296506 | J34: 0.001756856447 | K34: =VLOOKUP(C34,ביטוח!$C$27:$H$174,4,0) ->  | L34: =VLOOKUP(C34,ביטוח!$C$27:$H$174,5,0) -> 
A35: 1 | B35: 31.12.21 | C35: 150 | D35: קרן י' הישנה | E35: ישן | F35: 17012 | G35: 0.1504392013 | H35: 0.4800978986 | I35: 0.001962296506 | J35: 0.001756856447 | K35: =VLOOKUP(C35,ביטוח!$C$27:$H$174,4,0) ->  | L35: =VLOOKUP(C35,ביטוח!$C$27:$H$174,5,0) -> 
A36: 1 | B36: 31.12.21 | C36: 550 | D36: קרן י' הישנה | E36: ישן | F36: 17012 | G36: 0.1504392013 | H36: 0.4800978986 | I36: 0.001962296506 | J36: 0.001756856447 | K36: =VLOOKUP(C36,ביטוח!$C$27:$H$174,4,0) ->  | L36: =VLOOKUP(C36,ביטוח!$C$27:$H$174,5,0) -> 
A37: 1 | B37: 31.12.21 | C37: 564 | D37: קרן י' הישנה | E37: ישן | F37: 17012 | G37: 0.1504392013 | H37: 0.4800978986 | I37: 0.001962296506 | J37: 0.001756856447 | K37: =VLOOKUP(C37,ביטוח!$C$27:$H$174,4,0) ->  | L37: =VLOOKUP(C37,ביטוח!$C$27:$H$174,5,0) -> 
A38: 1 | B38: 31.12.21 | C38: 565 | D38: קרן י' הישנה | E38: ישן | F38: 17012 | G38: 0.1504392013 | H38: 0.4800978986 | I38: 0.001962296506 | J38: 0.001756856447 | K38: =VLOOKUP(C38,ביטוח!$C$27:$H$174,4,0) ->  | L38: =VLOOKUP(C38,ביטוח!$C$27:$H$174,5,0) -> 
A39: 1 | B39: 31.12.21 | C39: 571 | D39: קרן י' הישנה | E39: ישן | F39: 17012 | G39: 0.1504392013 | H39: 0.4800978986 | I39: 0.001962296506 | J39: 0.001756856447 | K39: =VLOOKUP(C39,ביטוח!$C$27:$H$174,4,0) ->  | L39: =VLOOKUP(C39,ביטוח!$C$27:$H$174,5,0) -> 
A40: 1 | B40: 31.12.21 | C40: 676 | D40: קרן י' הישנה | E40: ישן | F40: 17012 | G40: 0.1504392013 | H40: 0.4800978986 | I40: 0.001962296506 | J40: 0.001756856447 | K40: =VLOOKUP(C40,ביטוח!$C$27:$H$174,4,0) ->  | L40: =VLOOKUP(C40,ביטוח!$C$27:$H$174,5,0) -> 
A41: 1 | B41: 31.12.21 | C41: 371 | D41: קרן י' הישנה | E41: ישן | F41: 17012 | G41: 0.1504392013 | H41: 0.4800978986 | I41: 0.001962296506 | J41: 0.001756856447 | K41: =VLOOKUP(C41,ביטוח!$C$27:$H$174,4,0) -> 0.002 | L41: =VLOOKUP(C41,ביטוח!$C$27:$H$174,5,0) -> 0.0018
A42: 1 | B42: 31.12.21 | C42: 771 | D42: קרן י' הישנה | E42: ישן | F42: 17012 | G42: 0.1504392013 | H42: 0.4800978986 | I42: 0.001962296506 | J42: 0.001756856447 | K42: =VLOOKUP(C42,ביטוח!$C$27:$H$174,4,0) ->  | L42: =VLOOKUP(C42,ביטוח!$C$27:$H$174,5,0) -> 
A43: 1 | B43: 31.12.21 | C43: 26 | D43: קרן י' הישנה הסנה | E43: ישן | F43: 17012 | G43: 0.1556828211 | H43: 0.4925467003 | I43: 0.001962296506 | J43: 0.001756856447 | K43: =VLOOKUP(C43,ביטוח!$C$27:$H$174,4,0) ->  | L43: =VLOOKUP(C43,ביטוח!$C$27:$H$174,5,0) -> 
A44: 1 | B44: 31.12.21 | C44: 28 | D44: קרן י' הישנה הסנה | E44: ישן | F44: 17012 | G44: 0.1556828211 | H44: 0.4925467003 | I44: 0.001962296506 | J44: 0.001756856447 | K44: =VLOOKUP(C44,ביטוח!$C$27:$H$174,4,0) ->  | L44: =VLOOKUP(C44,ביטוח!$C$27:$H$174,5,0) -> 
A45: 1 | B45: 31.12.21 | C45: 68 | D45: קרן י' הישנה הסנה | E45: ישן | F45: 17012 | G45: 0.1556828211 | H45: 0.4925467003 | I45: 0.001962296506 | J45: 0.001756856447 | K45: =VLOOKUP(C45,ביטוח!$C$27:$H$174,4,0) ->  | L45: =VLOOKUP(C45,ביטוח!$C$27:$H$174,5,0) -> 
A46: 1 | B46: 31.12.21 | C46: 69 | D46: קרן י' הישנה הסנה | E46: ישן | F46: 17012 | G46: 0.1556828211 | H46: 0.4925467003 | I46: 0.001962296506 | J46: 0.001756856447 | K46: =VLOOKUP(C46,ביטוח!$C$27:$H$174,4,0) ->  | L46: =VLOOKUP(C46,ביטוח!$C$27:$H$174,5,0) -> 
A47: 1 | B47: 31.12.21 | C47: 592 | D47: מגדל מסלול כללי | E47: חדש | F47: 17013 | G47: 0.1421571621 | H47: 0.4412939048 | I47: 0.001873378646 | J47: 0.001696202649 | K47: =VLOOKUP(C47,ביטוח!$C$27:$H$174,4,0) -> 0.0019 | L47: =VLOOKUP(C47,ביטוח!$C$27:$H$174,5,0) -> 0.0017
A48: 1 | B48: 31.12.21 | C48: 72 | D48: מגדל מסלול כללי | E48: חדש | F48: 17013 | G48: 0.1421571621 | H48: 0.4412939048 | I48: 0.001873378646 | J48: 0.001696202649 | K48: =VLOOKUP(C48,ביטוח!$C$27:$H$174,4,0) -> 0.0019 | L48: =VLOOKUP(C48,ביטוח!$C$27:$H$174,5,0) -> 0.0017
A49: 1 | B49: 31.12.21 | C49: 73 | D49: מגדל מסלול כללי | E49: חדש | F49: 17013 | G49: 0.1421571621 | H49: 0.4412939048 | I49: 0.001873378646 | J49: 0.001696202649 | K49: =VLOOKUP(C49,ביטוח!$C$27:$H$174,4,0) -> 0.0019 | L49: =VLOOKUP(C49,ביטוח!$C$27:$H$174,5,0) -> 0.0017
A50: 1 | B50: 31.12.21 | C50: 572 | D50: מגדל מסלול כללי | E50: חדש | F50: 17013 | G50: 0.1421571621 | H50: 0.4412939048 | I50: 0.001873378646 | J50: 0.001696202649 | K50: =VLOOKUP(C50,ביטוח!$C$27:$H$174,4,0) -> 0.0019 | L50: =VLOOKUP(C50,ביטוח!$C$27:$H$174,5,0) -> 0.0017
A51: 1 | B51: 31.12.21 | C51: 573 | D51: מגדל מסלול כללי | E51: חדש | F51: 17013 | G51: 0.1421571621 | H51: 0.4412939048 | I51: 0.001873378646 | J51: 0.001696202649 | K51: =VLOOKUP(C51,ביטוח!$C$27:$H$174,4,0) -> 0.0019 | L51: =VLOOKUP(C51,ביטוח!$C$27:$H$174,5,0) -> 0.0017
A52: 1 | B52: 31.12.21 | C52: 192 | D52: מגדל מסלול כללי | E52: חדש | F52: 17013 | G52: 0.1421571621 | H52: 0.4412939048 | I52: 0.001873378646 | J52: 0.001696202649 | K52: =VLOOKUP(C52,ביטוח!$C$27:$H$174,4,0) -> 0.0019 | L52: =VLOOKUP(C52,ביטוח!$C$27:$H$174,5,0) -> 0.0017
A53: 1 | B53: 31.12.21 | C53: 200 | D53: מגדל מסלול כללי | E53: חדש | F53: 17013 | G53: 0.1421571621 | H53: 0.4412939048 | I53: 0.001873378646 | J53: 0.001696202649 | K53: =VLOOKUP(C53,ביטוח!$C$27:$H$174,4,0) -> 0.0019 | L53: =VLOOKUP(C53,ביטוח!$C$27:$H$174,5,0) -> 0.0017
A54: 1 | B54: 31.12.21 | C54: 230 | D54: מגדל מסלול כללי | E54: חדש | F54: 17013 | G54: 0.1421571621 | H54: 0.4412939048 | I54: 0.001873378646 | J54: 0.001696202649 | K54: =VLOOKUP(C54,ביטוח!$C$27:$H$174,4,0) -> 0.0019 | L54: =VLOOKUP(C54,ביטוח!$C$27:$H$174,5,0) -> 0.0017
A55: 1 | B55: 31.12.21 | C55: 600 | D55: מגדל מסלול כללי | E55: חדש | F55: 17013 | G55: 0.1421571621 | H55: 0.4412939048 | I55: 0.001873378646 | J55: 0.001696202649 | K55: =VLOOKUP(C55,ביטוח!$C$27:$H$174,4,0) -> 0.0019 | L55: =VLOOKUP(C55,ביטוח!$C$27:$H$174,5,0) -> 0.0017
A56: 1 | B56: 31.12.21 | C56: 74 | D56: מגדל מסלול כללי | E56: חדש | F56: 17013 | G56: 0.1421571621 | H56: 0.4412939048 | I56: 0.001873378646 | J56: 0.001696202649 | K56: =VLOOKUP(C56,ביטוח!$C$27:$H$174,4,0) ->  | L56: =VLOOKUP(C56,ביטוח!$C$27:$H$174,5,0) -> 
A57: 1 | B57: 31.12.21 | C57: 145 | D57: מגדל מסלול כללי | E57: חדש | F57: 17013 | G57: 0.1421571621 | H57: 0.4412939048 | I57: 0.001873378646 | J57: 0.001696202649 | K57: =VLOOKUP(C57,ביטוח!$C$27:$H$174,4,0) ->  | L57: =VLOOKUP(C57,ביטוח!$C$27:$H$174,5,0) -> 
A58: 1 | B58: 31.12.21 | C58: 146 | D58: מגדל מסלול כללי | E58: חדש | F58: 17013 | G58: 0.1421571621 | H58: 0.4412939048 | I58: 0.001873378646 | J58: 0.001696202649 | K58: =VLOOKUP(C58,ביטוח!$C$27:$H$174,4,0) ->  | L58: =VLOOKUP(C58,ביטוח!$C$27:$H$174,5,0) -> 
A59: 1 | B59: 31.12.21 | C59: 148 | D59: מגדל מסלול כללי | E59: חדש | F59: 17013 | G59: 0.1421571621 | H59: 0.4412939048 | I59: 0.001873378646 | J59: 0.001696202649 | K59: =VLOOKUP(C59,ביטוח!$C$27:$H$174,4,0) ->  | L59: =VLOOKUP(C59,ביטוח!$C$27:$H$174,5,0) -> 
A60: 1 | B60: 31.12.21 | C60: 220 | D60: מגדל מסלול כללי | E60: חדש | F60: 17013 | G60: 0.1421571621 | H60: 0.4412939048 | I60: 0.001873378646 | J60: 0.001696202649 | K60: =VLOOKUP(C60,ביטוח!$C$27:$H$174,4,0) ->  | L60: =VLOOKUP(C60,ביטוח!$C$27:$H$174,5,0) -> 
A61: 1 | B61: 31.12.21 | C61: 221 | D61: מגדל מסלול כללי | E61: חדש | F61: 17013 | G61: 0.1421571621 | H61: 0.4412939048 | I61: 0.001873378646 | J61: 0.001696202649 | K61: =VLOOKUP(C61,ביטוח!$C$27:$H$174,4,0) ->  | L61: =VLOOKUP(C61,ביטוח!$C$27:$H$174,5,0) -> 
A62: 1 | B62: 31.12.21 | C62: 222 | D62: מגדל מסלול כללי | E62: חדש | F62: 17013 | G62: 0.1421571621 | H62: 0.4412939048 | I62: 0.001873378646 | J62: 0.001696202649 | K62: =VLOOKUP(C62,ביטוח!$C$27:$H$174,4,0) -> 0.0019 | L62: =VLOOKUP(C62,ביטוח!$C$27:$H$174,5,0) -> 0.0017
A63: 1 | B63: 31.12.21 | C63: 251 | D63: מגדל מסלול כללי | E63: חדש | F63: 17013 | G63: 0.1421571621 | H63: 0.4412939048 | I63: 0.001873378646 | J63: 0.001696202649 | K63: =VLOOKUP(C63,ביטוח!$C$27:$H$174,4,0) -> 0.0019 | L63: =VLOOKUP(C63,ביטוח!$C$27:$H$174,5,0) -> 0.0017
A64: 1 | B64: 31.12.21 | C64: 300 | D64: מגדל מסלול כללי | E64: חדש | F64: 17013 | G64: 0.1421571621 | H64: 0.4412939048 | I64: 0.001873378646 | J64: 0.001696202649 | K64: =VLOOKUP(C64,ביטוח!$C$27:$H$174,4,0) -> 0.0019 | L64: =VLOOKUP(C64,ביטוח!$C$27:$H$174,5,0) -> 0.0017
A65: 1 | B65: 31.12.21 | C65: 545 | D65: מגדל מסלול כללי | E65: חדש | F65: 17013 | G65: 0.1421571621 | H65: 0.4412939048 | I65: 0.001873378646 | J65: 0.001696202649 | K65: =VLOOKUP(C65,ביטוח!$C$27:$H$174,4,0) ->  | L65: =VLOOKUP(C65,ביטוח!$C$27:$H$174,5,0) -> 
A66: 1 | B66: 31.12.21 | C66: 546 | D66: מגדל מסלול כללי | E66: חדש | F66: 17013 | G66: 0.1421571621 | H66: 0.4412939048 | I66: 0.001873378646 | J66: 0.001696202649 | K66: =VLOOKUP(C66,ביטוח!$C$27:$H$174,4,0) ->  | L66: =VLOOKUP(C66,ביטוח!$C$27:$H$174,5,0) -> 
A67: 1 | B67: 31.12.21 | C67: 548 | D67: מגדל מסלול כללי | E67: חדש | F67: 17013 | G67: 0.1421571621 | H67: 0.4412939048 | I67: 0.001873378646 | J67: 0.001696202649 | K67: =VLOOKUP(C67,ביטוח!$C$27:$H$174,4,0) ->  | L67: =VLOOKUP(C67,ביטוח!$C$27:$H$174,5,0) -> 
A68: 1 | B68: 31.12.21 | C68: 574 | D68: מגדל מסלול כללי | E68: חדש | F68: 17013 | G68: 0.1421571621 | H68: 0.4412939048 | I68: 0.001873378646 | J68: 0.001696202649 | K68: =VLOOKUP(C68,ביטוח!$C$27:$H$174,4,0) ->  | L68: =VLOOKUP(C68,ביטוח!$C$27:$H$174,5,0) -> 
A69: 1 | B69: 31.12.21 | C69: 671 | D69: מגדל מסלול כללי | E69: חדש | F69: 17013 | G69: 0.1421571621 | H69: 0.4412939048 | I69: 0.001873378646 | J69: 0.001696202649 | K69: =VLOOKUP(C69,ביטוח!$C$27:$H$174,4,0) ->  | L69: =VLOOKUP(C69,ביטוח!$C$27:$H$174,5,0) -> 
A70: 1 | B70: 31.12.21 | C70: 781 | D70: מגדל מסלול כללי | E70: חדש | F70: 17013 | G70: 0.1421571621 | H70: 0.4412939048 | I70: 0.001873378646 | J70: 0.001696202649 | K70: =VLOOKUP(C70,ביטוח!$C$27:$H$174,4,0) -> 0.0019 | L70: =VLOOKUP(C70,ביטוח!$C$27:$H$174,5,0) -> 0.0017
A71: 1 | B71: 31.12.21 | C71: 108 | D71: מסלול אג"ח ממשלת ישראל | E71: ישן | F71: 68 | G71: 0.02092662478 | H71: 0.1411903428 | I71: 0.000269877811 | J71: 0 | K71: =VLOOKUP(C71,ביטוח!$C$27:$H$174,4,0) ->  | L71: =VLOOKUP(C71,ביטוח!$C$27:$H$174,5,0) -> 
A72: 1 | B72: 31.12.21 | C72: 508 | D72: מסלול אג"ח ממשלת ישראל | E72: ישן | F72: 68 | G72: 0.02092662478 | H72: 0.1411903428 | I72: 0.000269877811 | J72: 0 | K72: =VLOOKUP(C72,ביטוח!$C$27:$H$174,4,0) ->  | L72: =VLOOKUP(C72,ביטוח!$C$27:$H$174,5,0) -> 
A73: 1 | B73: 31.12.21 | C73: 121 | D73: מסלול אג"ח ממשלת ישראל | E73: חדש | F73: 68 | G73: 0.02092662478 | H73: 0.1411903428 | I73: 0.000269877811 | J73: 0 | K73: =VLOOKUP(C73,ביטוח!$C$27:$H$174,4,0) -> 0.0003 | L73: =VLOOKUP(C73,ביטוח!$C$27:$H$174,5,0) -> 0
A74: 1 | B74: 31.12.21 | C74: 131 | D74: מסלול אג"ח ממשלת ישראל | E74: חדש | F74: 68 | G74: 0.02092662478 | H74: 0.1411903428 | I74: 0.000269877811 | J74: 0 | K74: =VLOOKUP(C74,ביטוח!$C$27:$H$174,4,0) -> 0.0003 | L74: =VLOOKUP(C74,ביטוח!$C$27:$H$174,5,0) -> 0
A75: 1 | B75: 31.12.21 | C75: 521 | D75: מסלול אג"ח ממשלת ישראל | E75: חדש | F75: 68 | G75: 0.02092662478 | H75: 0.1411903428 | I75: 0.000269877811 | J75: 0 | K75: =VLOOKUP(C75,ביטוח!$C$27:$H$174,4,0) -> 0.0003 | L75: =VLOOKUP(C75,ביטוח!$C$27:$H$174,5,0) -> 0
A76: 1 | B76: 31.12.21 | C76: 531 | D76: מסלול אג"ח ממשלת ישראל | E76: חדש | F76: 68 | G76: 0.02092662478 | H76: 0.1411903428 | I76: 0.000269877811 | J76: 0 | K76: =VLOOKUP(C76,ביטוח!$C$27:$H$174,4,0) -> 0.0003 | L76: =VLOOKUP(C76,ביטוח!$C$27:$H$174,5,0) -> 0
A77: 1 | B77: 31.12.21 | C77: 191 | D77: מסלול אג"ח ממשלת ישראל | E77: חדש | F77: 68 | G77: 0.02092662478 | H77: 0.1411903428 | I77: 0.000269877811 | J77: 0 | K77: =VLOOKUP(C77,ביטוח!$C$27:$H$174,4,0) -> 0.0003 | L77: =VLOOKUP(C77,ביטוח!$C$27:$H$174,5,0) -> 0
A78: 1 | B78: 31.12.21 | C78: 231 | D78: מסלול אג"ח ממשלת ישראל | E78: חדש | F78: 68 | G78: 0.02092662478 | H78: 0.1411903428 | I78: 0.000269877811 | J78: 0 | K78: =VLOOKUP(C78,ביטוח!$C$27:$H$174,4,0) -> 0.0003 | L78: =VLOOKUP(C78,ביטוח!$C$27:$H$174,5,0) -> 0
A79: 1 | B79: 31.12.21 | C79: 591 | D79: מסלול אג"ח ממשלת ישראל | E79: חדש | F79: 68 | G79: 0.02092662478 | H79: 0.1411903428 | I79: 0.000269877811 | J79: 0 | K79: =VLOOKUP(C79,ביטוח!$C$27:$H$174,4,0) -> 0.0003 | L79: =VLOOKUP(C79,ביטוח!$C$27:$H$174,5,0) -> 0
A80: 1 | B80: 31.12.21 | C80: 141 | D80: מסלול אג"ח ממשלת ישראל | E80: חדש | F80: 68 | G80: 0.02092662478 | H80: 0.1411903428 | I80: 0.000269877811 | J80: 0 | K80: =VLOOKUP(C80,ביטוח!$C$27:$H$174,4,0) ->  | L80: =VLOOKUP(C80,ביטוח!$C$27:$H$174,5,0) -> 
A81: 1 | B81: 31.12.21 | C81: 281 | D81: מסלול אג"ח ממשלת ישראל | E81: חדש | F81: 68 | G81: 0.02092662478 | H81: 0.1411903428 | I81: 0.000269877811 | J81: 0 | K81: =VLOOKUP(C81,ביטוח!$C$27:$H$174,4,0) -> 0.0003 | L81: =VLOOKUP(C81,ביטוח!$C$27:$H$174,5,0) -> 0
A82: 1 | B82: 31.12.21 | C82: 291 | D82: מסלול אג"ח ממשלת ישראל | E82: חדש | F82: 68 | G82: 0.02092662478 | H82: 0.1411903428 | I82: 0.000269877811 | J82: 0 | K82: =VLOOKUP(C82,ביטוח!$C$27:$H$174,4,0) -> 0.0003 | L82: =VLOOKUP(C82,ביטוח!$C$27:$H$174,5,0) -> 0
A83: 1 | B83: 31.12.21 | C83: 541 | D83: מסלול אג"ח ממשלת ישראל | E83: חדש | F83: 68 | G83: 0.02092662478 | H83: 0.1411903428 | I83: 0.000269877811 | J83: 0 | K83: =VLOOKUP(C83,ביטוח!$C$27:$H$174,4,0) ->  | L83: =VLOOKUP(C83,ביטוח!$C$27:$H$174,5,0) -> 
A84: 1 | B84: 31.12.21 | C84: 100 | D84: מסלול אג"ח עד 10% מניות | E84: ישן | F84: 69 | G84: 0.05270362381 | H84: 0.2195546651 | I84: 0.0005813749809 | J84: 0.0003289651898 | K84: =VLOOKUP(C84,ביטוח!$C$27:$H$174,4,0) ->  | L84: =VLOOKUP(C84,ביטוח!$C$27:$H$174,5,0) -> 
A85: 1 | B85: 31.12.21 | C85: 500 | D85: מסלול אג"ח עד 10% מניות | E85: ישן | F85: 69 | G85: 0.05270362381 | H85: 0.2195546651 | I85: 0.0005813749809 | J85: 0.0003289651898 | K85: =VLOOKUP(C85,ביטוח!$C$27:$H$174,4,0) ->  | L85: =VLOOKUP(C85,ביטוח!$C$27:$H$174,5,0) -> 
A86: 1 | B86: 31.12.21 | C86: 113 | D86: מסלול אג"ח עד 10% מניות | E86: חדש | F86: 69 | G86: 0.05270362381 | H86: 0.2195546651 | I86: 0.0005813749809 | J86: 0.0003289651898 | K86: =VLOOKUP(C86,ביטוח!$C$27:$H$174,4,0) -> 0.0006 | L86: =VLOOKUP(C86,ביטוח!$C$27:$H$174,5,0) -> 0.0003
A87: 1 | B87: 31.12.21 | C87: 155 | D87: מסלול אג"ח עד 10% מניות | E87: חדש | F87: 69 | G87: 0.05270362381 | H87: 0.2195546651 | I87: 0.0005813749809 | J87: 0.0003289651898 | K87: =VLOOKUP(C87,ביטוח!$C$27:$H$174,4,0) -> 0.0006 | L87: =VLOOKUP(C87,ביטוח!$C$27:$H$174,5,0) -> 0.0003
A88: 1 | B88: 31.12.21 | C88: 123 | D88: מסלול אג"ח עד 10% מניות | E88: חדש | F88: 69 | G88: 0.05270362381 | H88: 0.2195546651 | I88: 0.0005813749809 | J88: 0.0003289651898 | K88: =VLOOKUP(C88,ביטוח!$C$27:$H$174,4,0) -> 0.0006 | L88: =VLOOKUP(C88,ביטוח!$C$27:$H$174,5,0) -> 0.0003
A89: 1 | B89: 31.12.21 | C89: 158 | D89: מסלול אג"ח עד 10% מניות | E89: חדש | F89: 69 | G89: 0.05270362381 | H89: 0.2195546651 | I89: 0.0005813749809 | J89: 0.0003289651898 | K89: =VLOOKUP(C89,ביטוח!$C$27:$H$174,4,0) -> 0.0006 | L89: =VLOOKUP(C89,ביטוח!$C$27:$H$174,5,0) -> 0.0003
A90: 1 | B90: 31.12.21 | C90: 513 | D90: מסלול אג"ח עד 10% מניות | E90: חדש | F90: 69 | G90: 0.05270362381 | H90: 0.2195546651 | I90: 0.0005813749809 | J90: 0.0003289651898 | K90: =VLOOKUP(C90,ביטוח!$C$27:$H$174,4,0) -> 0.0006 | L90: =VLOOKUP(C90,ביטוח!$C$27:$H$174,5,0) -> 0.0003
A91: 1 | B91: 31.12.21 | C91: 555 | D91: מסלול אג"ח עד 10% מניות | E91: חדש | F91: 69 | G91: 0.05270362381 | H91: 0.2195546651 | I91: 0.0005813749809 | J91: 0.0003289651898 | K91: =VLOOKUP(C91,ביטוח!$C$27:$H$174,4,0) ->  | L91: =VLOOKUP(C91,ביטוח!$C$27:$H$174,5,0) -> 
A92: 1 | B92: 31.12.21 | C92: 523 | D92: מסלול אג"ח עד 10% מניות | E92: חדש | F92: 69 | G92: 0.05270362381 | H92: 0.2195546651 | I92: 0.0005813749809 | J92: 0.0003289651898 | K92: =VLOOKUP(C92,ביטוח!$C$27:$H$174,4,0) -> 0.0006 | L92: =VLOOKUP(C92,ביטוח!$C$27:$H$174,5,0) -> 0.0003
A93: 1 | B93: 31.12.21 | C93: 558 | D93: מסלול אג"ח עד 10% מניות | E93: חדש | F93: 69 | G93: 0.05270362381 | H93: 0.2195546651 | I93: 0.0005813749809 | J93: 0.0003289651898 | K93: =VLOOKUP(C93,ביטוח!$C$27:$H$174,4,0) ->  | L93: =VLOOKUP(C93,ביטוח!$C$27:$H$174,5,0) -> 
A94: 1 | B94: 31.12.21 | C94: 193 | D94: מסלול אג"ח עד 10% מניות | E94: חדש | F94: 69 | G94: 0.05270362381 | H94: 0.2195546651 | I94: 0.0005813749809 | J94: 0.0003289651898 | K94: =VLOOKUP(C94,ביטוח!$C$27:$H$174,4,0) -> 0.0006 | L94: =VLOOKUP(C94,ביטוח!$C$27:$H$174,5,0) -> 0.0003
A95: 1 | B95: 31.12.21 | C95: 205 | D95: מסלול אג"ח עד 10% מניות | E95: חדש | F95: 69 | G95: 0.05270362381 | H95: 0.2195546651 | I95: 0.0005813749809 | J95: 0.0003289651898 | K95: =VLOOKUP(C95,ביטוח!$C$27:$H$174,4,0) -> 0.0006 | L95: =VLOOKUP(C95,ביטוח!$C$27:$H$174,5,0) -> 0.0003
A96: 1 | B96: 31.12.21 | C96: 243 | D96: מסלול אג"ח עד 10% מניות | E96: חדש | F96: 69 | G96: 0.05270362381 | H96: 0.2195546651 | I96: 0.0005813749809 | J96: 0.0003289651898 | K96: =VLOOKUP(C96,ביטוח!$C$27:$H$174,4,0) -> 0.0006 | L96: =VLOOKUP(C96,ביטוח!$C$27:$H$174,5,0) -> 0.0003
A97: 1 | B97: 31.12.21 | C97: 345 | D97: מסלול אג"ח עד 10% מניות | E97: חדש | F97: 69 | G97: 0.05270362381 | H97: 0.2195546651 | I97: 0.0005813749809 | J97: 0.0003289651898 | K97: =VLOOKUP(C97,ביטוח!$C$27:$H$174,4,0) -> 0.0006 | L97: =VLOOKUP(C97,ביטוח!$C$27:$H$174,5,0) -> 0.0003
A98: 1 | B98: 31.12.21 | C98: 593 | D98: מסלול אג"ח עד 10% מניות | E98: חדש | F98: 69 | G98: 0.05270362381 | H98: 0.2195546651 | I98: 0.0005813749809 | J98: 0.0003289651898 | K98: =VLOOKUP(C98,ביטוח!$C$27:$H$174,4,0) -> 0.0006 | L98: =VLOOKUP(C98,ביטוח!$C$27:$H$174,5,0) -> 0.0003
A99: 1 | B99: 31.12.21 | C99: 133 | D99: מסלול אג"ח עד 10% מניות | E99: חדש | F99: 69 | G99: 0.05270362381 | H99: 0.2195546651 | I99: 0.0005813749809 | J99: 0.0003289651898 | K99: =VLOOKUP(C99,ביטוח!$C$27:$H$174,4,0) ->  | L99: =VLOOKUP(C99,ביטוח!$C$27:$H$174,5,0) -> 
A100: 1 | B100: 31.12.21 | C100: 263 | D100: מסלול אג"ח עד 10% מניות | E100: חדש | F100: 69 | G100: 0.05270362381 | H100: 0.2195546651 | I100: 0.0005813749809 | J100: 0.0003289651898 | K100: =VLOOKUP(C100,ביטוח!$C$27:$H$174,4,0) -> 0.0006 | L100: =VLOOKUP(C100,ביטוח!$C$27:$H$174,5,0) -> 0.0003
A101: 1 | B101: 31.12.21 | C101: 283 | D101: מסלול אג"ח עד 10% מניות | E101: חדש | F101: 69 | G101: 0.05270362381 | H101: 0.2195546651 | I101: 0.0005813749809 | J101: 0.0003289651898 | K101: =VLOOKUP(C101,ביטוח!$C$27:$H$174,4,0) -> 0.0006 | L101: =VLOOKUP(C101,ביטוח!$C$27:$H$174,5,0) -> 0.0003
A102: 1 | B102: 31.12.21 | C102: 405 | D102: מסלול אג"ח עד 10% מניות | E102: חדש | F102: 69 | G102: 0.05270362381 | H102: 0.2195546651 | I102: 0.0005813749809 | J102: 0.0003289651898 | K102: =VLOOKUP(C102,ביטוח!$C$27:$H$174,4,0) -> 0.0006 | L102: =VLOOKUP(C102,ביטוח!$C$27:$H$174,5,0) -> 0.0003
A103: 1 | B103: 31.12.21 | C103: 445 | D103: מסלול אג"ח עד 10% מניות | E103: חדש | F103: 69 | G103: 0.05270362381 | H103: 0.2195546651 | I103: 0.0005813749809 | J103: 0.0003289651898 | K103: =VLOOKUP(C103,ביטוח!$C$27:$H$174,4,0) -> 0.0006 | L103: =VLOOKUP(C103,ביטוח!$C$27:$H$174,5,0) -> 0.0003
A104: 1 | B104: 31.12.21 | C104: 455 | D104: מסלול אג"ח עד 10% מניות | E104: חדש | F104: 69 | G104: 0.05270362381 | H104: 0.2195546651 | I104: 0.0005813749809 | J104: 0.0003289651898 | K104: =VLOOKUP(C104,ביטוח!$C$27:$H$174,4,0) -> 0.0006 | L104: =VLOOKUP(C104,ביטוח!$C$27:$H$174,5,0) -> 0.0003
A105: 1 | B105: 31.12.21 | C105: 458 | D105: מסלול אג"ח עד 10% מניות | E105: חדש | F105: 69 | G105: 0.05270362381 | H105: 0.2195546651 | I105: 0.0005813749809 | J105: 0.0003289651898 | K105: =VLOOKUP(C105,ביטוח!$C$27:$H$174,4,0) -> 0.0006 | L105: =VLOOKUP(C105,ביטוח!$C$27:$H$174,5,0) -> 0.0003
A106: 1 | B106: 31.12.21 | C106: 533 | D106: מסלול אג"ח עד 10% מניות | E106: חדש | F106: 69 | G106: 0.05270362381 | H106: 0.2195546651 | I106: 0.0005813749809 | J106: 0.0003289651898 | K106: =VLOOKUP(C106,ביטוח!$C$27:$H$174,4,0) ->  | L106: =VLOOKUP(C106,ביטוח!$C$27:$H$174,5,0) -> 
A107: 1 | B107: 31.12.21 | C107: 605 | D107: מסלול אג"ח עד 10% מניות | E107: חדש | F107: 69 | G107: 0.05270362381 | H107: 0.2195546651 | I107: 0.0005813749809 | J107: 0.0003289651898 | K107: =VLOOKUP(C107,ביטוח!$C$27:$H$174,4,0) ->  | L107: =VLOOKUP(C107,ביטוח!$C$27:$H$174,5,0) -> 
A108: 1 | B108: 31.12.21 | C108: 101 | D108: מסלול אג"ח עד 10% מניות | E108: ישן | F108: 69 | G108: 0.05270362381 | H108: 0.2195546651 | I108: 0.0005813749809 | J108: 0.0003289651898 | K108: =VLOOKUP(C108,ביטוח!$C$27:$H$174,4,0) ->  | L108: =VLOOKUP(C108,ביטוח!$C$27:$H$174,5,0) -> 
A109: 1 | B109: 31.12.21 | C109: 501 | D109: מסלול אג"ח עד 10% מניות | E109: ישן | F109: 69 | G109: 0.05270362381 | H109: 0.2195546651 | I109: 0.0005813749809 | J109: 0.0003289651898 | K109: =VLOOKUP(C109,ביטוח!$C$27:$H$174,4,0) ->  | L109: =VLOOKUP(C109,ביטוח!$C$27:$H$174,5,0) -> 
A110: 1 | B110: 31.12.21 | C110: 114 | D110: מסלול אג"ח עד 10% מניות | E110: חדש | F110: 69 | G110: 0.05270362381 | H110: 0.2195546651 | I110: 0.0005813749809 | J110: 0.0003289651898 | K110: =VLOOKUP(C110,ביטוח!$C$27:$H$174,4,0) -> 0.0006 | L110: =VLOOKUP(C110,ביטוח!$C$27:$H$174,5,0) -> 0.0003
A111: 1 | B111: 31.12.21 | C111: 124 | D111: מסלול אג"ח עד 10% מניות | E111: חדש | F111: 69 | G111: 0.05270362381 | H111: 0.2195546651 | I111: 0.0005813749809 | J111: 0.0003289651898 | K111: =VLOOKUP(C111,ביטוח!$C$27:$H$174,4,0) -> 0.0006 | L111: =VLOOKUP(C111,ביטוח!$C$27:$H$174,5,0) -> 0.0003
A112: 1 | B112: 31.12.21 | C112: 514 | D112: מסלול אג"ח עד 10% מניות | E112: חדש | F112: 69 | G112: 0.05270362381 | H112: 0.2195546651 | I112: 0.0005813749809 | J112: 0.0003289651898 | K112: =VLOOKUP(C112,ביטוח!$C$27:$H$174,4,0) -> 0.0006 | L112: =VLOOKUP(C112,ביטוח!$C$27:$H$174,5,0) -> 0.0003
A113: 1 | B113: 31.12.21 | C113: 524 | D113: מסלול אג"ח עד 10% מניות | E113: חדש | F113: 69 | G113: 0.05270362381 | H113: 0.2195546651 | I113: 0.0005813749809 | J113: 0.0003289651898 | K113: =VLOOKUP(C113,ביטוח!$C$27:$H$174,4,0) -> 0.0006 | L113: =VLOOKUP(C113,ביטוח!$C$27:$H$174,5,0) -> 0.0003
A114: 1 | B114: 31.12.21 | C114: 194 | D114: מסלול אג"ח עד 10% מניות | E114: חדש | F114: 69 | G114: 0.05270362381 | H114: 0.2195546651 | I114: 0.0005813749809 | J114: 0.0003289651898 | K114: =VLOOKUP(C114,ביטוח!$C$27:$H$174,4,0) -> 0.0006 | L114: =VLOOKUP(C114,ביטוח!$C$27:$H$174,5,0) -> 0.0003
A115: 1 | B115: 31.12.21 | C115: 244 | D115: מסלול אג"ח עד 10% מניות | E115: חדש | F115: 69 | G115: 0.05270362381 | H115: 0.2195546651 | I115: 0.0005813749809 | J115: 0.0003289651898 | K115: =VLOOKUP(C115,ביטוח!$C$27:$H$174,4,0) -> 0.0006 | L115: =VLOOKUP(C115,ביטוח!$C$27:$H$174,5,0) -> 0.0003
A116: 1 | B116: 31.12.21 | C116: 594 | D116: מסלול אג"ח עד 10% מניות | E116: חדש | F116: 69 | G116: 0.05270362381 | H116: 0.2195546651 | I116: 0.0005813749809 | J116: 0.0003289651898 | K116: =VLOOKUP(C116,ביטוח!$C$27:$H$174,4,0) -> 0.0006 | L116: =VLOOKUP(C116,ביטוח!$C$27:$H$174,5,0) -> 0.0003
A117: 1 | B117: 31.12.21 | C117: 134 | D117: מסלול אג"ח עד 10% מניות | E117: חדש | F117: 69 | G117: 0.05270362381 | H117: 0.2195546651 | I117: 0.0005813749809 | J117: 0.0003289651898 | K117: =VLOOKUP(C117,ביטוח!$C$27:$H$174,4,0) ->  | L117: =VLOOKUP(C117,ביטוח!$C$27:$H$174,5,0) -> 
A118: 1 | B118: 31.12.21 | C118: 264 | D118: מסלול אג"ח עד 10% מניות | E118: חדש | F118: 69 | G118: 0.05270362381 | H118: 0.2195546651 | I118: 0.0005813749809 | J118: 0.0003289651898 | K118: =VLOOKUP(C118,ביטוח!$C$27:$H$174,4,0) -> 0.0006 | L118: =VLOOKUP(C118,ביטוח!$C$27:$H$174,5,0) -> 0.0003
A119: 1 | B119: 31.12.21 | C119: 284 | D119: מסלול אג"ח עד 10% מניות | E119: חדש | F119: 69 | G119: 0.05270362381 | H119: 0.2195546651 | I119: 0.0005813749809 | J119: 0.0003289651898 | K119: =VLOOKUP(C119,ביטוח!$C$27:$H$174,4,0) -> 0.0006 | L119: =VLOOKUP(C119,ביטוח!$C$27:$H$174,5,0) -> 0.0003
A120: 1 | B120: 31.12.21 | C120: 534 | D120: מסלול אג"ח עד 10% מניות | E120: חדש | F120: 69 | G120: 0.05270362381 | H120: 0.2195546651 | I120: 0.0005813749809 | J120: 0.0003289651898 | K120: =VLOOKUP(C120,ביטוח!$C$27:$H$174,4,0) ->  | L120: =VLOOKUP(C120,ביטוח!$C$27:$H$174,5,0) -> 
A121: 1 | B121: 31.12.21 | C121: 103 | D121: מגדל מסלול אג"ח עד 25% מניות | E121: ישן | F121: 74 | G121: 0.07708500636 | H121: 0.2821403614 | I121: 0.0006649762599 | J121: 0.0004505819532 | K121: =VLOOKUP(C121,ביטוח!$C$27:$H$174,4,0) ->  | L121: =VLOOKUP(C121,ביטוח!$C$27:$H$174,5,0) -> 
A122: 1 | B122: 31.12.21 | C122: 503 | D122: מגדל מסלול אג"ח עד 25% מניות | E122: ישן | F122: 74 | G122: 0.07708500636 | H122: 0.2821403614 | I122: 0.0006649762599 | J122: 0.0004505819532 | K122: =VLOOKUP(C122,ביטוח!$C$27:$H$174,4,0) ->  | L122: =VLOOKUP(C122,ביטוח!$C$27:$H$174,5,0) -> 
A123: 1 | B123: 31.12.21 | C123: 116 | D123: מגדל מסלול אג"ח עד 25% מניות | E123: חדש | F123: 74 | G123: 0.07708500636 | H123: 0.2821403614 | I123: 0.0006649762599 | J123: 0.0004505819532 | K123: =VLOOKUP(C123,ביטוח!$C$27:$H$174,4,0) -> 0.0007 | L123: =VLOOKUP(C123,ביטוח!$C$27:$H$174,5,0) -> 0.0005
A124: 1 | B124: 31.12.21 | C124: 154 | D124: מגדל מסלול אג"ח עד 25% מניות | E124: חדש | F124: 74 | G124: 0.07708500636 | H124: 0.2821403614 | I124: 0.0006649762599 | J124: 0.0004505819532 | K124: =VLOOKUP(C124,ביטוח!$C$27:$H$174,4,0) -> 0.0007 | L124: =VLOOKUP(C124,ביטוח!$C$27:$H$174,5,0) -> 0.0005
A125: 1 | B125: 31.12.21 | C125: 126 | D125: מגדל מסלול אג"ח עד 25% מניות | E125: חדש | F125: 74 | G125: 0.07708500636 | H125: 0.2821403614 | I125: 0.0006649762599 | J125: 0.0004505819532 | K125: =VLOOKUP(C125,ביטוח!$C$27:$H$174,4,0) -> 0.0007 | L125: =VLOOKUP(C125,ביטוח!$C$27:$H$174,5,0) -> 0.0005
A126: 1 | B126: 31.12.21 | C126: 157 | D126: מגדל מסלול אג"ח עד 25% מניות | E126: חדש | F126: 74 | G126: 0.07708500636 | H126: 0.2821403614 | I126: 0.0006649762599 | J126: 0.0004505819532 | K126: =VLOOKUP(C126,ביטוח!$C$27:$H$174,4,0) -> 0.0007 | L126: =VLOOKUP(C126,ביטוח!$C$27:$H$174,5,0) -> 0.0005
A127: 1 | B127: 31.12.21 | C127: 516 | D127: מגדל מסלול אג"ח עד 25% מניות | E127: חדש | F127: 74 | G127: 0.07708500636 | H127: 0.2821403614 | I127: 0.0006649762599 | J127: 0.0004505819532 | K127: =VLOOKUP(C127,ביטוח!$C$27:$H$174,4,0) -> 0.0007 | L127: =VLOOKUP(C127,ביטוח!$C$27:$H$174,5,0) -> 0.0005
A128: 1 | B128: 31.12.21 | C128: 554 | D128: מגדל מסלול אג"ח עד 25% מניות | E128: חדש | F128: 74 | G128: 0.07708500636 | H128: 0.2821403614 | I128: 0.0006649762599 | J128: 0.0004505819532 | K128: =VLOOKUP(C128,ביטוח!$C$27:$H$174,4,0) ->  | L128: =VLOOKUP(C128,ביטוח!$C$27:$H$174,5,0) -> 
A129: 1 | B129: 31.12.21 | C129: 196 | D129: מגדל מסלול אג"ח עד 25% מניות | E129: חדש | F129: 74 | G129: 0.07708500636 | H129: 0.2821403614 | I129: 0.0006649762599 | J129: 0.0004505819532 | K129: =VLOOKUP(C129,ביטוח!$C$27:$H$174,4,0) -> 0.0007 | L129: =VLOOKUP(C129,ביטוח!$C$27:$H$174,5,0) -> 0.0005
A130: 1 | B130: 31.12.21 | C130: 204 | D130: מגדל מסלול אג"ח עד 25% מניות | E130: חדש | F130: 74 | G130: 0.07708500636 | H130: 0.2821403614 | I130: 0.0006649762599 | J130: 0.0004505819532 | K130: =VLOOKUP(C130,ביטוח!$C$27:$H$174,4,0) -> 0.0007 | L130: =VLOOKUP(C130,ביטוח!$C$27:$H$174,5,0) -> 0.0005
A131: 1 | B131: 31.12.21 | C131: 246 | D131: מגדל מסלול אג"ח עד 25% מניות | E131: חדש | F131: 74 | G131: 0.07708500636 | H131: 0.2821403614 | I131: 0.0006649762599 | J131: 0.0004505819532 | K131: =VLOOKUP(C131,ביטוח!$C$27:$H$174,4,0) -> 0.0007 | L131: =VLOOKUP(C131,ביטוח!$C$27:$H$174,5,0) -> 0.0005
A132: 1 | B132: 31.12.21 | C132: 344 | D132: מגדל מסלול אג"ח עד 25% מניות | E132: חדש | F132: 74 | G132: 0.07708500636 | H132: 0.2821403614 | I132: 0.0006649762599 | J132: 0.0004505819532 | K132: =VLOOKUP(C132,ביטוח!$C$27:$H$174,4,0) -> 0.0007 | L132: =VLOOKUP(C132,ביטוח!$C$27:$H$174,5,0) -> 0.0005
A133: 1 | B133: 31.12.21 | C133: 526 | D133: מגדל מסלול אג"ח עד 25% מניות | E133: חדש | F133: 74 | G133: 0.07708500636 | H133: 0.2821403614 | I133: 0.0006649762599 | J133: 0.0004505819532 | K133: =VLOOKUP(C133,ביטוח!$C$27:$H$174,4,0) -> 0.0007 | L133: =VLOOKUP(C133,ביטוח!$C$27:$H$174,5,0) -> 0.0005
A134: 1 | B134: 31.12.21 | C134: 557 | D134: מגדל מסלול אג"ח עד 25% מניות | E134: חדש | F134: 74 | G134: 0.07708500636 | H134: 0.2821403614 | I134: 0.0006649762599 | J134: 0.0004505819532 | K134: =VLOOKUP(C134,ביטוח!$C$27:$H$174,4,0) -> 0.0007 | L134: =VLOOKUP(C134,ביטוח!$C$27:$H$174,5,0) -> 0.0005
A135: 1 | B135: 31.12.21 | C135: 596 | D135: מגדל מסלול אג"ח עד 25% מניות | E135: חדש | F135: 74 | G135: 0.07708500636 | H135: 0.2821403614 | I135: 0.0006649762599 | J135: 0.0004505819532 | K135: =VLOOKUP(C135,ביטוח!$C$27:$H$174,4,0) -> 0.0007 | L135: =VLOOKUP(C135,ביטוח!$C$27:$H$174,5,0) -> 0.0005
A136: 1 | B136: 31.12.21 | C136: 136 | D136: מגדל מסלול אג"ח עד 25% מניות | E136: חדש | F136: 74 | G136: 0.07708500636 | H136: 0.2821403614 | I136: 0.0006649762599 | J136: 0.0004505819532 | K136: =VLOOKUP(C136,ביטוח!$C$27:$H$174,4,0) ->  | L136: =VLOOKUP(C136,ביטוח!$C$27:$H$174,5,0) -> 
A137: 1 | B137: 31.12.21 | C137: 266 | D137: מגדל מסלול אג"ח עד 25% מניות | E137: חדש | F137: 74 | G137: 0.07708500636 | H137: 0.2821403614 | I137: 0.0006649762599 | J137: 0.0004505819532 | K137: =VLOOKUP(C137,ביטוח!$C$27:$H$174,4,0) -> 0.0007 | L137: =VLOOKUP(C137,ביטוח!$C$27:$H$174,5,0) -> 0.0005
A138: 1 | B138: 31.12.21 | C138: 286 | D138: מגדל מסלול אג"ח עד 25% מניות | E138: חדש | F138: 74 | G138: 0.07708500636 | H138: 0.2821403614 | I138: 0.0006649762599 | J138: 0.0004505819532 | K138: =VLOOKUP(C138,ביטוח!$C$27:$H$174,4,0) -> 0.0007 | L138: =VLOOKUP(C138,ביטוח!$C$27:$H$174,5,0) -> 0.0005
A139: 1 | B139: 31.12.21 | C139: 404 | D139: מגדל מסלול אג"ח עד 25% מניות | E139: חדש | F139: 74 | G139: 0.07708500636 | H139: 0.2821403614 | I139: 0.0006649762599 | J139: 0.0004505819532 | K139: =VLOOKUP(C139,ביטוח!$C$27:$H$174,4,0) -> 0.0007 | L139: =VLOOKUP(C139,ביטוח!$C$27:$H$174,5,0) -> 0.0005
A140: 1 | B140: 31.12.21 | C140: 444 | D140: מגדל מסלול אג"ח עד 25% מניות | E140: חדש | F140: 74 | G140: 0.07708500636 | H140: 0.2821403614 | I140: 0.0006649762599 | J140: 0.0004505819532 | K140: =VLOOKUP(C140,ביטוח!$C$27:$H$174,4,0) -> 0.0007 | L140: =VLOOKUP(C140,ביטוח!$C$27:$H$174,5,0) -> 0.0005
A141: 1 | B141: 31.12.21 | C141: 454 | D141: מגדל מסלול אג"ח עד 25% מניות | E141: חדש | F141: 74 | G141: 0.07708500636 | H141: 0.2821403614 | I141: 0.0006649762599 | J141: 0.0004505819532 | K141: =VLOOKUP(C141,ביטוח!$C$27:$H$174,4,0) -> 0.0007 | L141: =VLOOKUP(C141,ביטוח!$C$27:$H$174,5,0) -> 0.0005
A142: 1 | B142: 31.12.21 | C142: 457 | D142: מגדל מסלול אג"ח עד 25% מניות | E142: חדש | F142: 74 | G142: 0.07708500636 | H142: 0.2821403614 | I142: 0.0006649762599 | J142: 0.0004505819532 | K142: =VLOOKUP(C142,ביטוח!$C$27:$H$174,4,0) -> 0.0007 | L142: =VLOOKUP(C142,ביטוח!$C$27:$H$174,5,0) -> 0.0005
A143: 1 | B143: 31.12.21 | C143: 536 | D143: מגדל מסלול אג"ח עד 25% מניות | E143: חדש | F143: 74 | G143: 0.07708500636 | H143: 0.2821403614 | I143: 0.0006649762599 | J143: 0.0004505819532 | K143: =VLOOKUP(C143,ביטוח!$C$27:$H$174,4,0) ->  | L143: =VLOOKUP(C143,ביטוח!$C$27:$H$174,5,0) -> 
A144: 1 | B144: 31.12.21 | C144: 604 | D144: מגדל מסלול אג"ח עד 25% מניות | E144: חדש | F144: 74 | G144: 0.07708500636 | H144: 0.2821403614 | I144: 0.0006649762599 | J144: 0.0004505819532 | K144: =VLOOKUP(C144,ביטוח!$C$27:$H$174,4,0) ->  | L144: =VLOOKUP(C144,ביטוח!$C$27:$H$174,5,0) -> 
A145: 1 | B145: 31.12.21 | C145: 104 | D145: כללי 3 ( עד 65% מניות ) | E145: ישן | F145: 75 | G145: 0.1582929522 | H145: 0.5149683723 | I145: 0.0008558548935 | J145: 0.0005980023167 | K145: =VLOOKUP(C145,ביטוח!$C$27:$H$174,4,0) ->  | L145: =VLOOKUP(C145,ביטוח!$C$27:$H$174,5,0) -> 
A146: 1 | B146: 31.12.21 | C146: 504 | D146: כללי 3 ( עד 65% מניות ) | E146: ישן | F146: 75 | G146: 0.1582929522 | H146: 0.5149683723 | I146: 0.0008558548935 | J146: 0.0005980023167 | K146: =VLOOKUP(C146,ביטוח!$C$27:$H$174,4,0) ->  | L146: =VLOOKUP(C146,ביטוח!$C$27:$H$174,5,0) -> 
A147: 1 | B147: 31.12.21 | C147: 597 | D147: כללי 3 ( עד 65% מניות ) | E147: ישן | F147: 75 | G147: 0.1582929522 | H147: 0.5149683723 | I147: 0.0008558548935 | J147: 0.0005980023167 | K147: =VLOOKUP(C147,ביטוח!$C$27:$H$174,4,0) -> 0.0009 | L147: =VLOOKUP(C147,ביטוח!$C$27:$H$174,5,0) -> 0.0006
A148: 1 | B148: 31.12.21 | C148: 117 | D148: כללי 3 ( עד 65% מניות ) | E148: חדש | F148: 75 | G148: 0.1582929522 | H148: 0.5149683723 | I148: 0.0008558548935 | J148: 0.0005980023167 | K148: =VLOOKUP(C148,ביטוח!$C$27:$H$174,4,0) -> 0.0009 | L148: =VLOOKUP(C148,ביטוח!$C$27:$H$174,5,0) -> 0.0006
A149: 1 | B149: 31.12.21 | C149: 127 | D149: כללי 3 ( עד 65% מניות ) | E149: חדש | F149: 75 | G149: 0.1582929522 | H149: 0.5149683723 | I149: 0.0008558548935 | J149: 0.0005980023167 | K149: =VLOOKUP(C149,ביטוח!$C$27:$H$174,4,0) -> 0.0009 | L149: =VLOOKUP(C149,ביטוח!$C$27:$H$174,5,0) -> 0.0006
A150: 1 | B150: 31.12.21 | C150: 517 | D150: כללי 3 ( עד 65% מניות ) | E150: חדש | F150: 75 | G150: 0.1582929522 | H150: 0.5149683723 | I150: 0.0008558548935 | J150: 0.0005980023167 | K150: =VLOOKUP(C150,ביטוח!$C$27:$H$174,4,0) -> 0.0009 | L150: =VLOOKUP(C150,ביטוח!$C$27:$H$174,5,0) -> 0.0006
A151: 1 | B151: 31.12.21 | C151: 527 | D151: כללי 3 ( עד 65% מניות ) | E151: חדש | F151: 75 | G151: 0.1582929522 | H151: 0.5149683723 | I151: 0.0008558548935 | J151: 0.0005980023167 | K151: =VLOOKUP(C151,ביטוח!$C$27:$H$174,4,0) -> 0.0009 | L151: =VLOOKUP(C151,ביטוח!$C$27:$H$174,5,0) -> 0.0006
A152: 1 | B152: 31.12.21 | C152: 197 | D152: כללי 3 ( עד 65% מניות ) | E152: חדש | F152: 75 | G152: 0.1582929522 | H152: 0.5149683723 | I152: 0.0008558548935 | J152: 0.0005980023167 | K152: =VLOOKUP(C152,ביטוח!$C$27:$H$174,4,0) -> 0.0009 | L152: =VLOOKUP(C152,ביטוח!$C$27:$H$174,5,0) -> 0.0006
A153: 1 | B153: 31.12.21 | C153: 247 | D153: כללי 3 ( עד 65% מניות ) | E153: חדש | F153: 75 | G153: 0.1582929522 | H153: 0.5149683723 | I153: 0.0008558548935 | J153: 0.0005980023167 | K153: =VLOOKUP(C153,ביטוח!$C$27:$H$174,4,0) -> 0.0009 | L153: =VLOOKUP(C153,ביטוח!$C$27:$H$174,5,0) -> 0.0006
A154: 1 | B154: 31.12.21 | C154: 137 | D154: כללי 3 ( עד 65% מניות ) | E154: חדש | F154: 75 | G154: 0.1582929522 | H154: 0.5149683723 | I154: 0.0008558548935 | J154: 0.0005980023167 | K154: =VLOOKUP(C154,ביטוח!$C$27:$H$174,4,0) ->  | L154: =VLOOKUP(C154,ביטוח!$C$27:$H$174,5,0) -> 
A155: 1 | B155: 31.12.21 | C155: 267 | D155: כללי 3 ( עד 65% מניות ) | E155: חדש | F155: 75 | G155: 0.1582929522 | H155: 0.5149683723 | I155: 0.0008558548935 | J155: 0.0005980023167 | K155: =VLOOKUP(C155,ביטוח!$C$27:$H$174,4,0) -> 0.0009 | L155: =VLOOKUP(C155,ביטוח!$C$27:$H$174,5,0) -> 0.0006
A156: 1 | B156: 31.12.21 | C156: 287 | D156: כללי 3 ( עד 65% מניות ) | E156: חדש | F156: 75 | G156: 0.1582929522 | H156: 0.5149683723 | I156: 0.0008558548935 | J156: 0.0005980023167 | K156: =VLOOKUP(C156,ביטוח!$C$27:$H$174,4,0) -> 0.0009 | L156: =VLOOKUP(C156,ביטוח!$C$27:$H$174,5,0) -> 0.0006
A157: 1 | B157: 31.12.21 | C157: 537 | D157: כללי 3 ( עד 65% מניות ) | E157: חדש | F157: 75 | G157: 0.1582929522 | H157: 0.5149683723 | I157: 0.0008558548935 | J157: 0.0005980023167 | K157: =VLOOKUP(C157,ביטוח!$C$27:$H$174,4,0) ->  | L157: =VLOOKUP(C157,ביטוח!$C$27:$H$174,5,0) -> 
A158: 1 | B158: 31.12.21 | C158: 105 | D158: מגדל מסלול מניות | E158: ישן | F158: 76 | G158: 0.2320155528 | H158: 0.738084773 | I158: 0.0008670161855 | J158: 0.0006636205306 | K158: =VLOOKUP(C158,ביטוח!$C$27:$H$174,4,0) ->  | L158: =VLOOKUP(C158,ביטוח!$C$27:$H$174,5,0) -> 
A159: 1 | B159: 31.12.21 | C159: 505 | D159: מגדל מסלול מניות | E159: ישן | F159: 76 | G159: 0.2320155528 | H159: 0.738084773 | I159: 0.0008670161855 | J159: 0.0006636205306 | K159: =VLOOKUP(C159,ביטוח!$C$27:$H$174,4,0) ->  | L159: =VLOOKUP(C159,ביטוח!$C$27:$H$174,5,0) -> 
A160: 1 | B160: 31.12.21 | C160: 153 | D160: מגדל מסלול מניות | E160: חדש | F160: 76 | G160: 0.2320155528 | H160: 0.738084773 | I160: 0.0008670161855 | J160: 0.0006636205306 | K160: =VLOOKUP(C160,ביטוח!$C$27:$H$174,4,0) -> 0.0009 | L160: =VLOOKUP(C160,ביטוח!$C$27:$H$174,5,0) -> 0.0007
A161: 1 | B161: 31.12.21 | C161: 118 | D161: מגדל מסלול מניות | E161: חדש | F161: 76 | G161: 0.2320155528 | H161: 0.738084773 | I161: 0.0008670161855 | J161: 0.0006636205306 | K161: =VLOOKUP(C161,ביטוח!$C$27:$H$174,4,0) -> 0.0009 | L161: =VLOOKUP(C161,ביטוח!$C$27:$H$174,5,0) -> 0.0007
A162: 1 | B162: 31.12.21 | C162: 156 | D162: מגדל מסלול מניות | E162: חדש | F162: 76 | G162: 0.2320155528 | H162: 0.738084773 | I162: 0.0008670161855 | J162: 0.0006636205306 | K162: =VLOOKUP(C162,ביטוח!$C$27:$H$174,4,0) -> 0.0009 | L162: =VLOOKUP(C162,ביטוח!$C$27:$H$174,5,0) -> 0.0007
A163: 1 | B163: 31.12.21 | C163: 128 | D163: מגדל מסלול מניות | E163: חדש | F163: 76 | G163: 0.2320155528 | H163: 0.738084773 | I163: 0.0008670161855 | J163: 0.0006636205306 | K163: =VLOOKUP(C163,ביטוח!$C$27:$H$174,4,0) -> 0.0009 | L163: =VLOOKUP(C163,ביטוח!$C$27:$H$174,5,0) -> 0.0007
A164: 1 | B164: 31.12.21 | C164: 518 | D164: מגדל מסלול מניות | E164: חדש | F164: 76 | G164: 0.2320155528 | H164: 0.738084773 | I164: 0.0008670161855 | J164: 0.0006636205306 | K164: =VLOOKUP(C164,ביטוח!$C$27:$H$174,4,0) -> 0.0009 | L164: =VLOOKUP(C164,ביטוח!$C$27:$H$174,5,0) -> 0.0007
A165: 1 | B165: 31.12.21 | C165: 553 | D165: מגדל מסלול מניות | E165: חדש | F165: 76 | G165: 0.2320155528 | H165: 0.738084773 | I165: 0.0008670161855 | J165: 0.0006636205306 | K165: =VLOOKUP(C165,ביטוח!$C$27:$H$174,4,0) -> 0.0009 | L165: =VLOOKUP(C165,ביטוח!$C$27:$H$174,5,0) -> 0.0007
A166: 1 | B166: 31.12.21 | C166: 528 | D166: מגדל מסלול מניות | E166: חדש | F166: 76 | G166: 0.2320155528 | H166: 0.738084773 | I166: 0.0008670161855 | J166: 0.0006636205306 | K166: =VLOOKUP(C166,ביטוח!$C$27:$H$174,4,0) -> 0.0009 | L166: =VLOOKUP(C166,ביטוח!$C$27:$H$174,5,0) -> 0.0007
A167: 1 | B167: 31.12.21 | C167: 556 | D167: מגדל מסלול מניות | E167: חדש | F167: 76 | G167: 0.2320155528 | H167: 0.738084773 | I167: 0.0008670161855 | J167: 0.0006636205306 | K167: =VLOOKUP(C167,ביטוח!$C$27:$H$174,4,0) -> 0.0009 | L167: =VLOOKUP(C167,ביטוח!$C$27:$H$174,5,0) -> 0.0007
A168: 1 | B168: 31.12.21 | C168: 198 | D168: מגדל מסלול מניות | E168: חדש | F168: 76 | G168: 0.2320155528 | H168: 0.738084773 | I168: 0.0008670161855 | J168: 0.0006636205306 | K168: =VLOOKUP(C168,ביטוח!$C$27:$H$174,4,0) -> 0.0009 | L168: =VLOOKUP(C168,ביטוח!$C$27:$H$174,5,0) -> 0.0007
A169: 1 | B169: 31.12.21 | C169: 203 | D169: מגדל מסלול מניות | E169: חדש | F169: 76 | G169: 0.2320155528 | H169: 0.738084773 | I169: 0.0008670161855 | J169: 0.0006636205306 | K169: =VLOOKUP(C169,ביטוח!$C$27:$H$174,4,0) -> 0.0009 | L169: =VLOOKUP(C169,ביטוח!$C$27:$H$174,5,0) -> 0.0007
A170: 1 | B170: 31.12.21 | C170: 248 | D170: מגדל מסלול מניות | E170: חדש | F170: 76 | G170: 0.2320155528 | H170: 0.738084773 | I170: 0.0008670161855 | J170: 0.0006636205306 | K170: =VLOOKUP(C170,ביטוח!$C$27:$H$174,4,0) -> 0.0009 | L170: =VLOOKUP(C170,ביטוח!$C$27:$H$174,5,0) -> 0.0007
A171: 1 | B171: 31.12.21 | C171: 343 | D171: מגדל מסלול מניות | E171: חדש | F171: 76 | G171: 0.2320155528 | H171: 0.738084773 | I171: 0.0008670161855 | J171: 0.0006636205306 | K171: =VLOOKUP(C171,ביטוח!$C$27:$H$174,4,0) -> 0.0009 | L171: =VLOOKUP(C171,ביטוח!$C$27:$H$174,5,0) -> 0.0007
A172: 1 | B172: 31.12.21 | C172: 598 | D172: מגדל מסלול מניות | E172: חדש | F172: 76 | G172: 0.2320155528 | H172: 0.738084773 | I172: 0.0008670161855 | J172: 0.0006636205306 | K172: =VLOOKUP(C172,ביטוח!$C$27:$H$174,4,0) -> 0.0009 | L172: =VLOOKUP(C172,ביטוח!$C$27:$H$174,5,0) -> 0.0007
A173: 1 | B173: 31.12.21 | C173: 603 | D173: מגדל מסלול מניות | E173: חדש | F173: 76 | G173: 0.2320155528 | H173: 0.738084773 | I173: 0.0008670161855 | J173: 0.0006636205306 | K173: =VLOOKUP(C173,ביטוח!$C$27:$H$174,4,0) -> 0.0009 | L173: =VLOOKUP(C173,ביטוח!$C$27:$H$174,5,0) -> 0.0007
A174: 1 | B174: 31.12.21 | C174: 456 | D174: מגדל מסלול מניות | E174: חדש | F174: 76 | G174: 0.2320155528 | H174: 0.738084773 | I174: 0.0008670161855 | J174: 0.0006636205306 | K174: =VLOOKUP(C174,ביטוח!$C$27:$H$174,4,0) -> 0.0009 | L174: =VLOOKUP(C174,ביטוח!$C$27:$H$174,5,0) -> 0.0007
A175: 1 | B175: 31.12.21 | C175: 138 | D175: מגדל מסלול מניות | E175: חדש | F175: 76 | G175: 0.2320155528 | H175: 0.738084773 | I175: 0.0008670161855 | J175: 0.0006636205306 | K175: =VLOOKUP(C175,ביטוח!$C$27:$H$174,4,0) ->  | L175: =VLOOKUP(C175,ביטוח!$C$27:$H$174,5,0) -> 
A176: 1 | B176: 31.12.21 | C176: 268 | D176: מגדל מסלול מניות | E176: חדש | F176: 76 | G176: 0.2320155528 | H176: 0.738084773 | I176: 0.0008670161855 | J176: 0.0006636205306 | K176: =VLOOKUP(C176,ביטוח!$C$27:$H$174,4,0) -> 0.0009 | L176: =VLOOKUP(C176,ביטוח!$C$27:$H$174,5,0) -> 0.0007
A177: 1 | B177: 31.12.21 | C177: 288 | D177: מגדל מסלול מניות | E177: חדש | F177: 76 | G177: 0.2320155528 | H177: 0.738084773 | I177: 0.0008670161855 | J177: 0.0006636205306 | K177: =VLOOKUP(C177,ביטוח!$C$27:$H$174,4,0) -> 0.0009 | L177: =VLOOKUP(C177,ביטוח!$C$27:$H$174,5,0) -> 0.0007
A178: 1 | B178: 31.12.21 | C178: 403 | D178: מגדל מסלול מניות | E178: חדש | F178: 76 | G178: 0.2320155528 | H178: 0.738084773 | I178: 0.0008670161855 | J178: 0.0006636205306 | K178: =VLOOKUP(C178,ביטוח!$C$27:$H$174,4,0) -> 0.0009 | L178: =VLOOKUP(C178,ביטוח!$C$27:$H$174,5,0) -> 0.0007
A179: 1 | B179: 31.12.21 | C179: 443 | D179: מגדל מסלול מניות | E179: חדש | F179: 76 | G179: 0.2320155528 | H179: 0.738084773 | I179: 0.0008670161855 | J179: 0.0006636205306 | K179: =VLOOKUP(C179,ביטוח!$C$27:$H$174,4,0) -> 0.0009 | L179: =VLOOKUP(C179,ביטוח!$C$27:$H$174,5,0) -> 0.0007
A180: 1 | B180: 31.12.21 | C180: 453 | D180: מגדל מסלול מניות | E180: חדש | F180: 76 | G180: 0.2320155528 | H180: 0.738084773 | I180: 0.0008670161855 | J180: 0.0006636205306 | K180: =VLOOKUP(C180,ביטוח!$C$27:$H$174,4,0) -> 0.0009 | L180: =VLOOKUP(C180,ביטוח!$C$27:$H$174,5,0) -> 0.0007
A181: 1 | B181: 31.12.21 | C181: 538 | D181: מגדל מסלול מניות | E181: חדש | F181: 76 | G181: 0.2320155528 | H181: 0.738084773 | I181: 0.0008670161855 | J181: 0.0006636205306 | K181: =VLOOKUP(C181,ביטוח!$C$27:$H$174,4,0) ->  | L181: =VLOOKUP(C181,ביטוח!$C$27:$H$174,5,0) -> 
A182: 1 | B182: 31.12.21 | C182: 270 | D182: מגדל מסלול הלכה | E182: חדש | F182: 185 | G182: 0.1198466894 | H182: 0.3315118691 | I182: 0.000875824799 | J182: 0.0007065271001 | K182: =VLOOKUP(C182,ביטוח!$C$27:$H$174,4,0) -> 0.0009 | L182: =VLOOKUP(C182,ביטוח!$C$27:$H$174,5,0) -> 0.0007
A183: 1 | B183: 31.12.21 | C183: 271 | D183: מגדל מסלול הלכה | E183: חדש | F183: 185 | G183: 0.1198466894 | H183: 0.3315118691 | I183: 0.000875824799 | J183: 0.0007065271001 | K183: =VLOOKUP(C183,ביטוח!$C$27:$H$174,4,0) -> 0.0009 | L183: =VLOOKUP(C183,ביטוח!$C$27:$H$174,5,0) -> 0.0007
A184: 1 | B184: 31.12.21 | C184: 272 | D184: מגדל מסלול הלכה | E184: חדש | F184: 185 | G184: 0.1198466894 | H184: 0.3315118691 | I184: 0.000875824799 | J184: 0.0007065271001 | K184: =VLOOKUP(C184,ביטוח!$C$27:$H$174,4,0) -> 0.0009 | L184: =VLOOKUP(C184,ביטוח!$C$27:$H$174,5,0) -> 0.0007
A185: 1 | B185: 31.12.21 | C185: 273 | D185: מגדל מסלול הלכה | E185: חדש | F185: 185 | G185: 0.1198466894 | H185: 0.3315118691 | I185: 0.000875824799 | J185: 0.0007065271001 | K185: =VLOOKUP(C185,ביטוח!$C$27:$H$174,4,0) -> 0.0009 | L185: =VLOOKUP(C185,ביטוח!$C$27:$H$174,5,0) -> 0.0007
A186: 1 | B186: 31.12.21 | C186: 274 | D186: מגדל מסלול הלכה | E186: חדש | F186: 185 | G186: 0.1198466894 | H186: 0.3315118691 | I186: 0.000875824799 | J186: 0.0007065271001 | K186: =VLOOKUP(C186,ביטוח!$C$27:$H$174,4,0) ->  | L186: =VLOOKUP(C186,ביטוח!$C$27:$H$174,5,0) -> 
A187: 1 | B187: 31.12.21 | C187: 275 | D187: מגדל מסלול הלכה | E187: חדש | F187: 185 | G187: 0.1198466894 | H187: 0.3315118691 | I187: 0.000875824799 | J187: 0.0007065271001 | K187: =VLOOKUP(C187,ביטוח!$C$27:$H$174,4,0) -> 0.0009 | L187: =VLOOKUP(C187,ביטוח!$C$27:$H$174,5,0) -> 0.0007
A188: 1 | B188: 31.12.21 | C188: 276 | D188: מגדל מסלול הלכה | E188: חדש | F188: 185 | G188: 0.1198466894 | H188: 0.3315118691 | I188: 0.000875824799 | J188: 0.0007065271001 | K188: =VLOOKUP(C188,ביטוח!$C$27:$H$174,4,0) -> 0.0009 | L188: =VLOOKUP(C188,ביטוח!$C$27:$H$174,5,0) -> 0.0007
A189: 1 | B189: 31.12.21 | C189: 910 | D189: מסלול למקבלי קצבה | E189: חדש | F189: 9606 | G189: 0.08542379516 | H189: 0.2727507287 | I189: 0.001118875342 | J189: 0.001040553443 | K189: =VLOOKUP(C189,ביטוח!$C$27:$H$174,4,0) ->  | L189: =VLOOKUP(C189,ביטוח!$C$27:$H$174,5,0) -> 
A190: 1 | B190: 31.12.21 | C190: 911 | D190: מסלול לבני 50 ומטה מנוהל | E190: חדש | F190: 9599 | G190: 0.150300545 | H190: 0.4347288549 | I190: 0.00170550435 | J190: 0.001623695759 | K190: =VLOOKUP(C190,ביטוח!$C$27:$H$174,4,0) -> 0.0017 | L190: =VLOOKUP(C190,ביטוח!$C$27:$H$174,5,0) -> 0.0016
A191: 1 | B191: 31.12.21 | C191: 912 | D191: מסלול לבני 50 עד 60 מנוהל | E191: חדש | F191: 9604 | G191: 0.1277344669 | H191: 0.3759407601 | I191: 0.001564517766 | J191: 0.001556149141 | K191: =VLOOKUP(C191,ביטוח!$C$27:$H$174,4,0) -> 0.0016 | L191: =VLOOKUP(C191,ביטוח!$C$27:$H$174,5,0) -> 0.0016
A192: 1 | B192: 31.12.21 | C192: 913 | D192: מסלול לבני 60 ומעלה מנוהל | E192: חדש | F192: 9729 | G192: 0.1008766316 | H192: 0.3124104022 | I192: 0.00131633586 | J192: 0.001173375515 | K192: =VLOOKUP(C192,ביטוח!$C$27:$H$174,4,0) -> 0.0013 | L192: =VLOOKUP(C192,ביטוח!$C$27:$H$174,5,0) -> 0.0012
A193: 1 | B193: 31.12.21 | C193: 914 | D193: מסלול לבני 50 ומטה לא מנוהל | E193: חדש | F193: 9599 | G193: 0.150300545 | H193: 0.4347288549 | I193: 0.00170550435 | J193: 0.001623695759 | K193: =VLOOKUP(C193,ביטוח!$C$27:$H$174,4,0) -> 0.0017 | L193: =VLOOKUP(C193,ביטוח!$C$27:$H$174,5,0) -> 0.0016
A194: 1 | B194: 31.12.21 | C194: 915 | D194: מסלול לבני 50 עד 60 לא מנוהל | E194: חדש | F194: 9604 | G194: 0.1277344669 | H194: 0.3759407601 | I194: 0.001564517766 | J194: 0.001556149141 | K194: =VLOOKUP(C194,ביטוח!$C$27:$H$174,4,0) -> 0.0016 | L194: =VLOOKUP(C194,ביטוח!$C$27:$H$174,5,0) -> 0.0016
A195: 1 | B195: 31.12.21 | C195: 916 | D195: מסלול לבני 60 ומעלה לא מנוהל | E195: חדש | F195: 9729 | G195: 0.1008766316 | H195: 0.3124104022 | I195: 0.00131633586 | J195: 0.001173375515 | K195: =VLOOKUP(C195,ביטוח!$C$27:$H$174,4,0) -> 0.0013 | L195: =VLOOKUP(C195,ביטוח!$C$27:$H$174,5,0) -> 0.0012
A196: 1 | B196: 31.12.21 | C196: 921 | D196: מסלול לבני 50 ומטה מנוהל | E196: חדש | F196: 9599 | G196: 0.150300545 | H196: 0.4347288549 | I196: 0.00170550435 | J196: 0.001623695759 | K196: =VLOOKUP(C196,ביטוח!$C$27:$H$174,4,0) -> 0.0017 | L196: =VLOOKUP(C196,ביטוח!$C$27:$H$174,5,0) -> 0.0016
A197: 1 | B197: 31.12.21 | C197: 922 | D197: מסלול לבני 50 עד 60 מנוהל | E197: חדש | F197: 9604 | G197: 0.1277344669 | H197: 0.3759407601 | I197: 0.001564517766 | J197: 0.001556149141 | K197: =VLOOKUP(C197,ביטוח!$C$27:$H$174,4,0) -> 0.0016 | L197: =VLOOKUP(C197,ביטוח!$C$27:$H$174,5,0) -> 0.0016
A198: 1 | B198: 31.12.21 | C198: 923 | D198: מסלול לבני 60 ומעלה מנוהל | E198: חדש | F198: 9729 | G198: 0.1008766316 | H198: 0.3124104022 | I198: 0.00131633586 | J198: 0.001173375515 | K198: =VLOOKUP(C198,ביטוח!$C$27:$H$174,4,0) -> 0.0013 | L198: =VLOOKUP(C198,ביטוח!$C$27:$H$174,5,0) -> 0.0012
A199: 1 | B199: 31.12.21 | C199: 924 | D199: מסלול לבני 50 ומטה לא מנוהל | E199: חדש | F199: 9599 | G199: 0.150300545 | H199: 0.4347288549 | I199: 0.00170550435 | J199: 0.001623695759 | K199: =VLOOKUP(C199,ביטוח!$C$27:$H$174,4,0) -> 0.0017 | L199: =VLOOKUP(C199,ביטוח!$C$27:$H$174,5,0) -> 0.0016
A200: 1 | B200: 31.12.21 | C200: 925 | D200: מסלול לבני 50 עד 60 לא מנוהל | E200: חדש | F200: 9604 | G200: 0.1277344669 | H200: 0.3759407601 | I200: 0.001564517766 | J200: 0.001556149141 | K200: =VLOOKUP(C200,ביטוח!$C$27:$H$174,4,0) -> 0.0016 | L200: =VLOOKUP(C200,ביטוח!$C$27:$H$174,5,0) -> 0.0016
... 92 more rows

Sheet הפעלה
